Cogmind - Beta 10.1 @@@ ROGUE MODE // 2021.06.22 @ 05:58:58 // Winter2019/RPGLIKE Player: Farfid Result: Fortifying 0b10! Performance ------------- Evolutions (9) 4500 Regions Visited (34) 6800 Robots Destroyed (614) 3070 Value Destroyed (35280) 35280 Prototype IDs (116) 2320 Alien Tech Used (6) 1200 Bonus (32439) 32439 TOTAL SCORE: 85609 Bonus ------- High Alert Combat Kills 5757 Follower Combat Kills 739 Met Data Miner 300 Met Imprinter 300 Destroyed Z-Imprinter 1000 Exposed GOLEM Chamber 500 Met Zhirov 300 Found Hidden Lab 3000 Hacked Protovariant 500 Pursued by Intercept 1000 Acquired SGEMP 2000 Met Sigix 2000 Delivered SGEMP 2000 Destroyed MAIN.C Guards 500 Met MAIN.C 5000 Destroyed MAIN.C Shell 5000 Win 3000 Friendly Fire -457 Cogmind --------- Core Integrity 1622/1800 Matter 284/300 Energy 2097/2580 System Corruption 15% Temperature Cool (0) Movement Hovering (40) Location By MAIN.C's Side Parts ------- > --- POWER (2) -------- Graviton Reactor Graviton Reactor > --- PROPULSION (6) --- Combat Linear Gravjet Combat Linear Gravjet Combat Linear Gravjet Combat Linear Gravjet Combat Linear Gravjet Combat Linear Gravjet > --- UTILITY (11) ----- Experimental Power Amplifier Experimental Energy Well Experimental Energy Well Experimental Signal Interpreter Experimental Core Analyzer Advanced Armor Integrity Analyzer Precision Energy Filter Advanced Particle Charger Quantum Capacitor AEGIS Remote Shield > --- WEAPON (5) ------- Warp Gun Compact HERF Cannon Assembled Focal Cannon Null Cannon Compact Tesla Bomb Launcher > --- INVENTORY (5) ---- Protomatter-79 Zionite Metafield Generator Advanced Terrain Scanner EM Disruption Field System Restoration Module Peak State ------------ > --- POWER ------------ Graviton Reactor Graviton Reactor > --- PROPULSION ------- Combat Linear Gravjet Combat Linear Gravjet Combat Linear Gravjet Combat Linear Gravjet Combat Linear Gravjet Combat Linear Gravjet > --- UTILITY ---------- Experimental Power Amplifier Experimental Energy Well Experimental Energy Well Experimental Signal Interpreter Experimental Core Analyzer Advanced Armor Integrity Analyzer Precision Energy Filter Advanced Particle Charger Quantum Capacitor AEGIS Remote Shield > --- WEAPON ----------- Warp Gun Compact HERF Cannon Assembled Focal Cannon Null Cannon Compact Tesla Bomb Launcher > --- INVENTORY -------- Zionite Metafield Generator Advanced Terrain Scanner EM Disruption Field System Restoration Module [Rating: 208] Favorites ----------- Power Zionite Light DM Reactor Engine Improved Deuterium Engine Power Core Fission Core Reactor Zionite Light DM Reactor Propulsion Combat Linear Gravjet Wheel Armored Huge Wheel Hover Unit Combat Linear Gravjet Utility Advanced Signal Interpreter Device Advanced Terrain Scanner Storage Zionite Biocell Processor Advanced Signal Interpreter Protection Improved Light Armor Plating Weapon Assembled Focal Cannon Energy Gun Gatling Laser Energy Cannon Assembled Focal Cannon Ballistic Gun Assault Rifle Launcher Improved Proton Missile Launcher Special Weapon Advanced Remote Datajack Slashing Weapon Greatsword Build | -11 -10 -10 -9 -9 -9 -8 -8 -7 -7 -7 -7 -6 -6 -6 -6 -6 -6 -5 -5 -5 -5 -5 -4 -4 -4 -4 -4 -4 -3 -3 -2 -2 -1 -1 ------- Run | Scr Mat Min Mat Min Exi Min Mat Fac Low Low Dat Pro Fac Low Low Zio Dee Pro Fac Upp Upp Zhi Pro Fac Was Fac Arm Lab Res Tes Res Qua Acc Com Slots Evolved 19 | 3 . 1 2 . . . . 4 1 . . . 3 . . . . . 1 . . . . 1 . . 1 . 1 . 1 . . . Power 1 | . . . . . . . . 1 . . . . . . . . . . . . . . . . . . . . . . . . . . Propulsion 5 | 1 . . . . . . . 2 . . . . 1 . . . . . . . . . . . . . 1 . . . . . . . Utility 10 | 1 . 1 1 . . . . 1 1 . . . 2 . . . . . 1 . . . . 1 . . . . . . 1 . . . Weapon 3 | 1 . . 1 . . . . . . . . . . . . . . . . . . . . . . . . . 1 . . . . . Parts Attached 259 | 6 4 2 3 1 . . 6 14 5 1 . 6 21 5 . . 34 3 28 2 . 6 2 8 2 . 25 14 2 20 14 5 . 20 Power 24 | 1 1 . 1 . . . 2 2 1 . . 1 1 . . . 2 . 2 . . 2 . 2 . . 1 1 . 1 . 2 . 1 Engine 5 | 1 1 . . . . . 1 1 1 . . . . . . . . . . . . . . . . . . . . . . . . . Core 5 | . . . 1 . . . 1 1 . . . . 1 . . . . . 1 . . . . . . . . . . . . . . . Reactor 14 | . . . . . . . . . . . . 1 . . . . 2 . 1 . . 2 . 2 . . 1 1 . 1 . 2 . 1 Propulsion 39 | 2 . . . 1 . . 1 3 . . . . 5 . . . 6 . 8 . . . 2 . 1 . 7 . . . 1 2 . . Treads . | . . . . . . . . . . . . . . . . . . . . . . . . . . . . . . . . . . . Leg . | . . . . . . . . . . . . . . . . . . . . . . . . . . . . . . . . . . . Wheel 10 | 2 . . . 1 . . 1 3 . . . . 1 . . . . . 1 . . . 1 . . . . . . . . . . . Hover 29 | . . . . . . . . . . . . . 4 . . . 6 . 7 . . . 1 . 1 . 7 . . . 1 2 . . Flight . | . . . . . . . . . . . . . . . . . . . . . . . . . . . . . . . . . . . Utility 101 | . 2 1 1 . . . 1 3 4 . . 4 3 . . . 17 . 12 2 . 4 . 4 . . 7 9 . 5 9 . . 13 Device 69 | . . 1 . . . . . 2 1 . . 2 1 . . . 11 . 11 2 . 3 . 4 . . 5 6 . 5 7 . . 8 Storage 7 | . . . . . . . . . . . . . . . . . 3 . . . . . . . . . . 1 . . . . . 3 Processor 12 | . 2 . . . . . . 1 1 . . . 2 . . . . . 1 . . . . . . . 2 . . . 2 . . 1 Hackware . | . . . . . . . . . . . . . . . . . . . . . . . . . . . . . . . . . . . Protection 13 | . . . 1 . . . 1 . 2 . . 2 . . . . 3 . . . . 1 . . . . . 2 . . . . . 1 Artifact . | . . . . . . . . . . . . . . . . . . . . . . . . . . . . . . . . . . . Weapon 95 | 3 1 1 1 . . . 2 6 . 1 . 1 12 5 . . 9 3 6 . . . . 2 1 . 10 4 2 14 4 1 . 6 Energy Gun 41 | 1 . 1 1 . . . 1 3 . 1 . 1 7 . . . 8 1 . . . . . . . . 3 3 1 4 3 1 . 1 Energy Cannon 34 | . 1 . . . . . 1 3 . . . . 5 4 . . 1 . 3 . . . . . 1 . 5 1 . 7 1 . . 1 Ballistic Gun 3 | 2 . . . . . . . . . . . . . . . . . . 1 . . . . . . . . . . . . . . . Ballistic Cannon . | . . . . . . . . . . . . . . . . . . . . . . . . . . . . . . . . . . . Launcher 14 | . . . . . . . . . . . . . . . . . . 2 2 . . . . 2 . . 2 . 1 3 . . . 2 Special Weapon 2 | . . . . . . . . . . . . . . . . . . . . . . . . . . . . . . . . . . 2 Impact Weapon . | . . . . . . . . . . . . . . . . . . . . . . . . . . . . . . . . . . . Slashing Weapon 1 | . . . . . . . . . . . . . . 1 . . . . . . . . . . . . . . . . . . . . Piercing Weapon . | . . . . . . . . . . . . . . . . . . . . . . . . . . . . . . . . . . . Special Melee Weapon . | . . . . . . . . . . . . . . . . . . . . . . . . . . . . . . . . . . . Unidentified Prototypes 73 | . . . . . . . 2 1 1 . . 1 3 . . . 11 . 8 1 . 4 . 4 . . 7 10 . 8 5 . . 7 Parts Lost 2 | . . . . . . . . . . . . . . . . . 1 . 1 . . . . . . . . . . . . . . . Power . | . . . . . . . . . . . . . . . . . . . . . . . . . . . . . . . . . . . Propulsion 1 | . . . . . . . . . . . . . . . . . 1 . . . . . . . . . . . . . . . . . Utility . | . . . . . . . . . . . . . . . . . . . . . . . . . . . . . . . . . . . Weapon 1 | . . . . . . . . . . . . . . . . . . . 1 . . . . . . . . . . . . . . . Highest Loss Streak 1 | . . . . . . . . . . . . . . . . . 1 . 1 . . . . . . . . . . . . . . . Average Slot Usage (%) 94 | . 99 100 97 100 100 100 99 87 81 86 87 87 90 94 94 94 90 92 98 100 100 99 100 99 100 100 98 94 95 94 95 95 95 95 Engine 2 | . 14 12 6 . . . . 1 11 12 12 8 3 . . . . . . . . . . . . . . . . . . . . . Core 1 | . . . 4 10 10 10 10 9 1 . . . 1 5 5 5 4 . . . . . . . . . . . . . . . . . Reactor 5 | . . . . . . . . . . . . 3 5 5 5 5 5 10 10 10 10 10 10 9 9 9 8 9 8 8 8 8 8 8 Wheel 5 | . 28 26 21 20 20 20 19 16 13 12 12 12 5 . . . . . . . . . . . . . . . . . . . . . Hover 16 | . . . . . . . . . . . . . 11 21 21 21 21 21 23 25 25 25 25 23 23 23 23 27 26 26 25 25 25 25 Device 21 | . . 6 10 10 10 10 10 10 13 18 18 18 20 21 21 21 20 21 24 25 25 24 25 27 28 28 27 26 26 24 28 29 29 27 Storage 2 | . . . . . . . . . . . . . . . . . . 5 5 5 5 5 5 4 4 4 4 4 4 4 4 4 4 4 Processor 14 | . 27 26 21 20 20 20 20 16 13 12 12 12 12 15 15 15 15 15 15 15 15 15 15 14 14 14 12 9 8 8 8 8 8 9 Protection 2 | . . . 3 10 10 10 10 8 6 6 6 6 5 5 5 5 3 . . . . . . . . . . . . . . . . . Energy Gun 5 | . 5 6 16 20 20 20 20 8 6 11 12 12 11 5 5 5 9 . . . . . . . . . . . 3 2 4 4 4 4 Energy Cannon 12 | . 8 12 10 10 10 10 10 16 13 12 12 12 10 15 15 15 7 15 15 15 15 15 15 14 14 14 13 12 13 14 12 12 12 12 Launcher 2 | . . . . . . . . . . . . . . . . . . 3 5 5 5 5 5 4 4 4 4 4 4 4 4 4 4 3 Naked Turns . | . . . . . . . . . . . . . . . . . . . . . . . . . . . . . . . . . . . Heaviest Build 119 | 8 12 16 24 24 24 24 25 39 44 47 47 50 60 62 62 62 68 75 85 84 84 84 84 85 85 83 105 110 102 119 118 118 118 118 Greatest Support 197 | 25 25 25 25 25 25 25 31 61 61 61 61 61 84 84 84 84 112 84 122 122 122 122 122 122 129 129 197 197 197 197 197 197 197 197 Greatest Overweight (x) 3 | . . . . . . . 1 . . . . . 1 . . . . . 3 . . . . . . . 1 . . . 1 . . . Average Overweight (x) . | . . . . . . . . . . . . . . . . . . . . . . . . . . . . . . . . . . . Largest Inventory Capacity 5 | 1 1 2 2 2 2 2 3 4 4 4 4 4 4 5 5 5 5 5 5 5 5 5 5 5 5 5 5 5 5 5 5 5 5 5 Average Capacity 4 | 1 1 1 2 2 2 2 2 3 4 4 4 4 4 4 5 5 5 5 5 5 5 5 5 5 5 5 5 5 5 5 5 5 5 5 Most Carried 5 | 1 1 2 2 2 2 2 3 3 4 4 2 4 4 5 5 5 5 4 5 5 5 5 5 5 5 5 5 5 5 5 5 4 4 5 Average Carried 3 | . . 1 1 1 2 1 2 2 1 2 2 2 3 3 4 4 4 4 4 5 4 5 4 5 4 4 4 4 4 4 4 4 3 4 Final Capacity 5 | 1 1 2 2 2 2 2 3 4 4 4 4 4 4 5 5 5 5 5 5 5 5 5 5 5 5 5 5 5 5 5 5 5 5 5 Final Carried 5 | . 1 2 2 2 2 1 3 1 3 2 2 3 4 5 4 5 4 4 5 5 5 5 5 5 5 4 5 5 5 5 4 4 4 5 Class Distribution -------------------- 25% | Machinist-Scout 16% | Scout 12% | Scavenger-Scout 11% | Scavenger-Gunner 11% | Mutant 7% | Scavenger-Skirmisher 4% | Gunner 4% | Skirmisher 3% | Scavenger-Mutant Dominant Class ---------------- Mutant | -10/Materials Mutant | -10/Mines Scavenger-Gunner | -9/Materials Scavenger-Gunner | -9/Mines Scavenger-Gunner | -9/Exiles Scavenger-Gunner | -8/Mines Scavenger-Gunner | -8/Materials Gunner | -7/Factory Scavenger-Gunner | -7/Lower Caves Scavenger-Skirmisher | -7/Lower Caves Scavenger-Skirmisher | -7/Data Miner Skirmisher | -6/Proximity Caves Scout | -6/Factory Scout | -6/Lower Caves Scout | -6/Lower Caves Scout | -6/Zion Mutant | -6/Deep Caves Mutant | -5/Proximity Caves Machinist-Scout | -5/Factory Machinist-Scout | -5/Upper Caves Machinist-Scout | -5/Upper Caves Machinist-Scout | -5/Zhirov Machinist-Scout | -4/Proximity Caves Machinist-Scout | -4/Factory Machinist-Scout | -4/Waste Machinist-Scout | -4/Factory Machinist-Scout | -4/Armory Scavenger-Scout | -4/Lab Scavenger-Scout | -3/Research Scavenger-Scout | -3/Testing Scavenger-Scout | -2/Research Scavenger-Scout | -2/Quarantine Scavenger-Scout | -1/Access Scavenger-Scout | -1/Command Resources | -11 -10 -10 -9 -9 -9 -8 -8 -7 -7 -7 -7 -6 -6 -6 -6 -6 -6 -5 -5 -5 -5 -5 -4 -4 -4 -4 -4 -4 -3 -3 -2 -2 -1 -1 ----------- Run | Scr Mat Min Mat Min Exi Min Mat Fac Low Low Dat Pro Fac Low Low Zio Dee Pro Fac Upp Upp Zhi Pro Fac Was Fac Arm Lab Res Tes Res Qua Acc Com Matter Collected 3407 | 260 127 74 30 10 . . 60 140 60 10 . 60 200 40 20 . 340 55 299 40 18 . 102 152 20 . 229 126 100 218 158 12 93 354 Remotely . | . . . . . . . . . . . . . . . . . . . . . . . . . . . . . . . . . . . Salvage Created 32522 | . 285 492 611 153 . 413 854 1516 423 403 . 396 1842 720 24 . 1630 1155 3431 521 737 . 1561 2417 799 769 1748 126 528 1379 1905 97 517 5070 Parts 1337 | . 38 26 38 2 . 25 43 71 30 12 . 9 98 22 1 . 43 44 137 24 32 . 69 98 3 22 47 7 9 46 94 1 27 219 Haulers Intercepted 29 | . 1 . . . . . . 6 . . . . 5 . . . . . 7 . . . . 6 . 1 . . 3 . . . . . Recyclers Shooed 7 | . 1 . . . . . . . . . . . 1 . . . . . 3 . . . . 1 . . . . . . 1 . . . Parts Field Recycled . | . . . . . . . . . . . . . . . . . . . . . . . . . . . . . . . . . . . Retrieved Matter . | . . . . . . . . . . . . . . . . . . . . . . . . . . . . . . . . . . . Parts Self-Destructed 189 | . . . . . . . . . 39 10 . 25 . 22 1 . . 30 . 4 14 . 44 . . . . . . . . . . . Prevented 82 | . . . . . . . . . . 2 . . . . . . . 13 . 20 18 . 29 . . . . . . . . . . . Kills | -11 -10 -10 -9 -9 -9 -8 -8 -7 -7 -7 -7 -6 -6 -6 -6 -6 -6 -5 -5 -5 -5 -5 -4 -4 -4 -4 -4 -4 -3 -3 -2 -2 -1 -1 ------- Run | Scr Mat Min Mat Min Exi Min Mat Fac Low Low Dat Pro Fac Low Low Zio Dee Pro Fac Upp Upp Zhi Pro Fac Was Fac Arm Lab Res Tes Res Qua Acc Com Combat Hostiles Destroyed 477 | . 13 9 13 10 . 17 16 21 14 12 . 8 24 12 . . 19 18 37 8 19 . 36 24 . 6 21 1 2 20 25 . 8 64 Guns 106 | . 8 2 8 8 . 14 10 10 6 8 . 2 10 1 . . 3 . . . . . . . . . . . . . 6 . . 10 Cannons 254 | . 5 7 4 2 . 3 6 9 7 2 . 3 11 11 . . 8 12 26 5 15 . 25 7 . 6 16 . . 13 18 . 4 29 AOE 26 | . . . . . . . . 1 . . . . 3 . . . . 2 1 . . . 3 11 . . . . . 2 . . . 3 Classes Destroyed 27 | . 5 2 1 2 . 2 2 1 2 1 . 1 . . 1 . 2 . . . . . 1 . . . . . . 2 . . . 2 Worker 14 | . 1 1 . . . . 1 1 . . . . 3 . . . . . . . . . . 3 . . . . . . 1 . 1 2 Builder 15 | . . . . . . 1 1 4 . . . . 4 . . . . . 3 . . . . 1 . . . . . . 1 . . . Tunneler 5 | . . 2 . . . 1 1 1 . . . . . . . . . . . . . . . . . . . . . . . . . . Hauler 29 | . 1 . . . . . . 6 . . . . 5 . . . . . 7 . . . . 6 . 1 . . 3 . . . . . Recycler 20 | . . . 1 1 . . 1 2 . . . . 2 . . . . . 2 . . . . 6 . 1 . . . . 2 . . 2 Minesweeper 3 | . . . . . . . . . . . . . . . 1 . . . . . 1 . 1 . . . . . . . . . . . Mechanic 2 | . . . . . . . . . . . . . . . . . . . . . . . . . . . . . . . . . . 2 Operator 3 | . . . . . . . 1 . . . . . . . . . . . 1 . . . . . . . . . . . 1 . . . Watcher 40 | . 2 . 2 . . . 2 1 . . . . 5 . . . . . 8 . . . . . . 1 5 . 2 2 2 2 1 5 Swarmer 105 | . 9 5 2 . . 11 4 10 5 6 . 3 7 . . . . 5 . . 9 . 10 13 . . . . . . . . . 6 Saboteur 1 | . . . . . . . . . . . . . . . . . . . . . . . 1 . . . . . . . . . . . Grunt 121 | . 4 2 5 . . 4 8 6 4 2 . 4 8 1 . . . 5 19 6 8 . 8 2 . 2 8 . 2 3 1 . . 9 Brawler 18 | . . . . . . . 2 . 1 1 . . . 3 . . . . 1 1 . . 5 . . . 3 . . . . . . 1 Duelist 9 | . . . . . . 2 . . . . . . . 4 . . . . . . 1 . 2 . . . . . . . . . . . Sentry 56 | . . 2 6 . . . 2 3 1 1 . . 2 2 . . . 1 7 1 1 . 2 4 . 4 3 . . . 5 . 3 6 Demolisher 2 | . . . . 2 . . . . . . . . . . . . . . . . . . . . . . . . . . . . . . Specialist 4 | . . . . . . . . . 1 . . . . . . . . . . . . . . . . . . . . 3 . . . . Hunter 41 | . . . . . . . . . 2 . . . 3 2 . . . 5 2 . . . 6 4 . . . . . 2 . . 5 10 Programmer 42 | . . . . . . . . 2 . 1 . . 4 . . . . 1 8 . . . 1 1 . . 7 . . 3 10 . . 4 Behemoth 3 | . . . . . . . . . . . . 1 . . . . . 1 . . . . . . . . . . . . . . . 1 M Guard 1 | . . . . . . . . . . . . . . . . . . . . . . . . . . . . . . . . . . 1 Enhanced Q-Series 23 | . . . . . . . . . . . . . . . . . . . . . . . . . . . . . . . . . . 23 Tracker 7 | . . . . . . . . . . . . . . . . . . . . . . . . . . . . . . 3 4 . . . Combat Programmer 10 | . . . . . . . . . . . . . . . . . . . . . . . . . . . . . . 3 5 . . 2 Striker 2 | . . . . . . . . . . . . . . . . . . . . . . . . . . . . . . 2 . . . . Alpha 7 1 | . . . . . . . . . . . . . . . . . . . . . . . . . . . . . . 1 . . . . Z-Technician 5 | . . . . . . . . . . . . . . . . . 5 . . . . . . . . . . . . . . . . . Z-Light 8 | . . . . . . . . . . . . . . . . . 8 . . . . . . . . . . . . . . . . . Assembled 11 | . . . . 8 . . . . . . . . . . . . 3 . . . . . . . . . . . . . . . . . Golem 8 | . . . . . . . . . . . . . . . . . 7 . . . . . 1 . . . . . . . . . . . Thug 1 | . . 1 . . . . . . . . . . . . . . . . . . . . . . . . . . . . . . . . Mutant 1 | . . . . . . . . . . 1 . . . . . . . . . . . . . . . . . . . . . . . . Best Kill Streak 14 | . 4 3 5 3 . 6 13 5 7 3 . 2 8 7 1 . 6 5 11 7 5 . 9 11 . 6 6 1 4 6 4 2 5 14 Combat Bots Only 11 | . 3 3 3 3 . 6 7 4 7 3 . 2 5 7 . . 6 5 11 7 5 . 9 10 . 5 4 1 1 6 3 . 5 8 Max Kills in Single Turn 5 | . 2 1 2 1 . 1 2 2 1 1 . 1 2 1 1 . 5 1 2 1 1 . 3 3 . 1 1 1 1 1 1 1 1 2 Gunslinging 1 | . . . . . . . . . . . . . . . . . 1 . . . . . . . . . . . . . . . . . Exploded 3 | . . . . . . . . 1 . . . . 2 . . . . 1 1 . . . 3 3 . . . . . 1 . . . 1 Melee . | . . . . . . . . . . . . . . . . . . . . . . . . . . . . . . . . . . . Uniques/NPCs Destroyed 3 | . . . . . . . . . . . . . . . . . 1 . . . . . . . . . . 1 . . . . . 1 Z-Imprinter (-6/Deep Caves) A5 (-4/Lab) MAIN.C Shell (-1/Command) Combat | -11 -10 -10 -9 -9 -9 -8 -8 -7 -7 -7 -7 -6 -6 -6 -6 -6 -6 -5 -5 -5 -5 -5 -4 -4 -4 -4 -4 -4 -3 -3 -2 -2 -1 -1 -------- Run | Scr Mat Min Mat Min Exi Min Mat Fac Low Low Dat Pro Fac Low Low Zio Dee Pro Fac Upp Upp Zhi Pro Fac Was Fac Arm Lab Res Tes Res Qua Acc Com Damage Taken 16139 | . 205 197 232 296 . 253 511 711 525 461 . 580 578 347 . . 902 716 521 59 457 . 1171 663 . 529 215 126 74 989 673 . 143 4005 Core 12392 | . 175 164 179 201 . 161 347 510 388 343 . 419 454 260 . . 507 568 421 46 355 . 937 545 . 415 172 108 57 813 528 . 112 3207 Absorbed by Shields 3737 | . . . . . . . . . . . . . . . . . . . . . . . . . . . 124 . . 11 490 . 147 2965 Redirected to Core 10357 | . 96 103 153 169 . 140 289 415 321 281 . 380 409 213 . . 440 499 348 46 332 . 803 419 . 397 154 60 57 624 439 . 104 2666 Core Remaining (%) 96 | 100 . 100 . . . 100 100 . . . . 100 . . . . . 100 . . . . 100 . . . . 100 . 71 . 95 . 90 Volleys Fired 1666 | . 29 26 26 15 . 23 42 63 25 30 . 20 88 19 1 . 70 41 135 21 32 . 70 67 6 33 63 50 21 78 142 21 30 379 Largest 4 | . 2 2 3 3 . 3 3 3 3 4 . 4 4 4 4 . 4 2 2 1 2 . 2 3 1 2 2 1 1 1 1 1 1 1 Hottest 330 | . 80 135 191 191 . 191 206 220 220 283 . 295 330 310 318 . 318 75 81 81 81 . 81 93 94 94 100 94 94 130 130 130 130 130 Shots Fired 2662 | . 58 52 70 45 . 69 126 162 67 103 . 80 233 76 4 . 164 64 158 21 46 . 103 92 6 54 88 50 21 78 142 22 30 378 Gun 744 | . 32 26 44 30 . 46 84 58 21 46 . 40 106 19 1 . 69 . . . . . . . . . 1 10 2 8 33 1 11 56 Cannon 1870 | . 26 26 26 15 . 23 42 104 46 57 . 40 127 57 3 . 95 59 156 21 43 . 101 80 6 54 86 40 19 66 109 21 16 306 Launcher 46 | . . . . . . . . . . . . . . . . . . 5 2 . 3 . 2 12 . . 1 . . 4 . . 3 14 Special 2 | . . . . . . . . . . . . . . . . . . . . . . . . . . . . . . . . . . 2 Kinetic 47 | . 29 18 . . . . . . . . . . . . . . . . . . . . . . . . . . . . . . . . Thermal 2036 | . 29 34 70 45 . 69 126 162 67 103 . 80 233 76 4 . 97 46 60 . 28 . 66 55 . 51 61 25 3 53 134 20 20 219 Explosive . | . . . . . . . . . . . . . . . . . . . . . . . . . . . . . . . . . . . Electromagnetic 537 | . . . . . . . . . . . . . . . . . 27 18 98 21 18 . 37 37 6 3 27 25 18 25 8 2 10 157 Phasic 40 | . . . . . . . . . . . . . . . . . 40 . . . . . . . . . . . . . . . . . Robot Hit Streak 58 | . 17 24 21 12 . 18 36 28 25 17 . 23 50 30 19 . 43 52 58 17 24 . 49 54 31 25 26 27 8 21 23 4 6 46 Robot Miss Streak 3 | . 2 2 3 1 . 2 3 3 2 2 . 1 3 1 . . 1 1 1 1 1 . 3 1 1 1 1 2 1 2 2 . 1 3 Penetration Max . | . . . . . . . . . . . . . . . . . . . . . . . . . . . . . . . . . . . Secondary Targets 1 | . . . . . . . . . . . . . . . . . 1 . . . . . . . . . . . . . . . . . Max Gunslinging Chain 1 | . . . . . . . . . . . . . . . . . 1 . . . . . . . . . . . . . . . . . Capacitor 692 | . . . . . . . . . . . . . . . . . . . . . . . . . . . 13 48 21 71 132 18 27 362 Shots Hit Robots 1790 | . 40 30 44 29 . 42 90 124 52 74 . 68 134 59 4 . 76 49 112 19 35 . 90 58 5 38 65 28 15 52 75 3 12 268 Core Hits 910 | . 19 15 18 18 . 25 39 70 30 23 . 22 84 24 1 . 41 29 53 9 20 . 44 45 1 14 27 7 6 27 46 1 13 139 Critical Hits 64 | . . 1 1 . . . 1 2 . . . . 1 . 1 . 1 . 2 . . . 2 4 . . 1 . . 5 12 . . 30 Critical Kills 13 | . . . . . . . 1 1 . . . . . . 1 . 1 . . . . . . 1 . . 1 . . 2 4 . . 1 Critical Parts Destroyed 42 | . . 1 1 . . . . 1 . . . . 1 . . . . . 2 . . . 2 3 . . . . . 3 7 . . 21 Melee Attacks . | . . . . . . . . . . . . . . . . . . . . . . . . . . . . . . . . . . . Impact . | . . . . . . . . . . . . . . . . . . . . . . . . . . . . . . . . . . . Slashing . | . . . . . . . . . . . . . . . . . . . . . . . . . . . . . . . . . . . Piercing . | . . . . . . . . . . . . . . . . . . . . . . . . . . . . . . . . . . . Sneak Attacks . | . . . . . . . . . . . . . . . . . . . . . . . . . . . . . . . . . . . Combat Hostiles . | . . . . . . . . . . . . . . . . . . . . . . . . . . . . . . . . . . . Follow-up Attacks . | . . . . . . . . . . . . . . . . . . . . . . . . . . . . . . . . . . . Damage Inflicted 91208 | . 633 472 834 467 . 726 1684 2570 1165 1173 . 1332 4528 1712 125 . 4882 3164 5952 913 2043 . 5387 4113 263 2415 4258 1012 811 4785 8276 184 1377 23952 Guns 13282 | . 246 157 620 379 . 620 1191 1313 521 693 . 756 2242 498 27 . 725 . . . . . . . . . . . 2 152 1136 . 416 1588 Cannons 70944 | . 387 315 214 88 . 106 493 1145 644 480 . 576 1685 1214 98 . 1832 2690 5771 913 1768 . 5155 2885 263 2415 4169 1012 809 4393 7140 184 715 21385 Explosions 6982 | . . . . . . . . 112 . . . . 601 . . . 2325 474 181 . 275 . 232 1228 . . 89 . . 240 . . 246 979 Melee . | . . . . . . . . . . . . . . . . . . . . . . . . . . . . . . . . . . . Ramming . | . . . . . . . . . . . . . . . . . . . . . . . . . . . . . . . . . . . Kinetic 288 | . 214 74 . . . . . . . . . . . . . . . . . . . . . . . . . . . . . . . . Thermal 66559 | . 419 398 834 467 . 726 1684 2458 1165 1173 . 1332 4281 1712 125 . 3765 2177 1617 . 1112 . 3578 2025 . 2224 2932 914 . 3570 7887 . 808 17176 Explosive 438 | . . . . . . . . . . . . . 37 . . . . . 98 . . . . 303 . . . . . . . . . . Electromagnetic 23611 | . . . . . . . . 112 . . . . 210 . . . 805 987 4237 913 931 . 1809 1785 263 191 1326 98 811 1215 389 184 569 6776 Impact . | . . . . . . . . . . . . . . . . . . . . . . . . . . . . . . . . . . . Slashing . | . . . . . . . . . . . . . . . . . . . . . . . . . . . . . . . . . . . Piercing . | . . . . . . . . . . . . . . . . . . . . . . . . . . . . . . . . . . . Phasic 312 | . . . . . . . . . . . . . . . . . 312 . . . . . . . . . . . . . . . . . Highest Corruption 15 | . . . . . . . . 1 1 2 2 2 2 2 2 2 . 1 4 4 . . 2 . . . 2 4 . 5 5 5 . 15 Average Corruption 2 | . . . . . . . . 1 1 1 2 2 1 2 2 2 . 1 1 2 . . 2 . . . 1 3 . 2 2 5 . 6 Corruption Purged 4 | . . . . . . . . . . . . . . . . . . . . 4 . . . . . . . . . . . . . . Effects 149 | . . . . . . . . 2 7 10 1 12 17 5 6 1 . 2 7 1 . . 4 . . . 9 6 . 6 7 7 . 39 Message Errors 43 | . . . . . . . . 1 4 6 . 4 6 2 4 1 . 1 2 . . . 1 . . . 3 2 . 1 . 1 . 4 Matter Fused 11 | . . . . . . . . . . . . . . . . . . . 1 . . . . . . . . 1 . . 3 2 . 4 Heat Flow Errors 10 | . . . . . . . . . . 1 1 1 . . 1 . . . . . . . 1 . . . . 1 . . . 1 . 3 Energy Discharges 22 | . . . . . . . . . 2 1 . 4 3 1 . . . . 3 . . . . . . . 2 1 . . 1 . . 4 Parts Rejected 2 | . . . . . . . . . . . . . . . . . . . . . . . . . . . . . . . 1 . . 1 Data Loss (minor) 23 | . . . . . . . . . 1 1 . 1 4 2 1 . . 1 . 1 . . 1 . . . 4 1 . 2 . 1 . 2 Misfires 3 | . . . . . . . . . . . . . . . . . . . . . . . . . . . . . . . . 1 . 2 Alerts 1 | . . . . . . . . . . . . . . . . . . . . . . . . . . . . . . . . . . 1 Misdirections 3 | . . . . . . . . . . . . . . . . . . . . . . . . . . . . . . . . . . 3 Targeting Errors 26 | . . . . . . . . 1 . . . 2 3 . . . . . 1 . . . 1 . . . . . . 3 2 1 . 12 Weapon Failures 5 | . . . . . . . . . . 1 . . 1 . . . . . . . . . . . . . . . . . . . . 3 Overload Shots . | . . . . . . . . . . . . . . . . . . . . . . . . . . . . . . . . . . . Overflow Damage 4683 | . . . . . . . . 2 1 41 . . 130 15 16 . 591 145 588 109 146 . 409 186 . 164 292 36 40 152 612 37 . 971 Projectiles 3912 | . . . . . . . . 2 1 41 . . 55 15 16 . 62 145 530 109 146 . 409 77 . 164 292 36 40 152 612 37 . 971 Explosions 771 | . . . . . . . . . . . . . 75 . . . 529 . 58 . . . . 109 . . . . . . . . . . Melee . | . . . . . . . . . . . . . . . . . . . . . . . . . . . . . . . . . . . Knockbacks . | . . . . . . . . . . . . . . . . . . . . . . . . . . . . . . . . . . . Impact . | . . . . . . . . . . . . . . . . . . . . . . . . . . . . . . . . . . . Kinetic . | . . . . . . . . . . . . . . . . . . . . . . . . . . . . . . . . . . . Secondary . | . . . . . . . . . . . . . . . . . . . . . . . . . . . . . . . . . . . Self-Inflicted Damage 114 | . . . . . . . . . . . . . 19 . . . 72 . . . . . . . . . . . . 22 . . . 1 Shots 4 | . . . . . . . . . . . . . 1 . . . 1 . . . . . . . . . . . . 1 . . . 1 Rammed . | . . . . . . . . . . . . . . . . . . . . . . . . . . . . . . . . . . . Targets Rammed . | . . . . . . . . . . . . . . . . . . . . . . . . . . . . . . . . . . . Kicked . | . . . . . . . . . . . . . . . . . . . . . . . . . . . . . . . . . . . Crushed . | . . . . . . . . . . . . . . . . . . . . . . . . . . . . . . . . . . . Highest Temperature 396 | . 61 63 132 129 . 54 171 70 113 120 115 138 396 258 175 . 369 . 103 7 . . 141 . . . 304 245 77 148 167 138 66 139 Average Temperature 48 | . 19 16 28 35 . 16 37 40 44 39 73 36 69 113 88 . 123 . 22 7 . . 68 . . . 134 92 26 44 67 82 52 32 Received Heat Transfer 2397 | . 84 60 102 160 . 36 234 147 108 39 . 108 72 45 . . 257 63 198 36 63 . 126 36 . 66 21 . 30 54 8 . . 244 Siege Activations . | . . . . . . . . . . . . . . . . . . . . . . . . . . . . . . . . . . . Robots Corrupted 98 | . . . . . . . . . . . . . . . . . 7 4 14 3 5 . 9 6 1 1 8 1 4 5 1 1 4 24 Combat Hostiles 82 | . . . . . . . . . . . . . . . . . 7 4 10 3 4 . 8 6 1 . 5 1 2 5 1 . 4 21 Parts Fried 231 | . . . . . . . . . . . . . 1 . . . . 10 36 4 6 . 32 11 4 6 24 3 10 15 2 4 8 55 Impact Corruptions . | . . . . . . . . . . . . . . . . . . . . . . . . . . . . . . . . . . . Robots Melted 11 | . . . 1 . . . . 1 1 2 . 3 1 . . . 1 . . . . . . . . . . . . . . . . 1 Combat Hostiles 10 | . . . 1 . . . . 1 1 2 . 3 . . . . 1 . . . . . . . . . . . . . . . . 1 Parts Melted 83 | . . 3 9 . . 3 8 11 4 4 . 5 16 6 1 . 6 . 1 . . . . . . . 1 . . 1 2 . 1 1 Heat Transferred 49505 | . 889 814 1702 999 . 1554 3515 4477 2063 2170 . 2460 6657 2183 148 . 1287 925 675 . 425 . 1450 875 . 950 1075 422 . 1473 3472 . 557 6288 Parts Sabotaged 4 | . . . . . . . . . . . . . . . . . . . . . . . . . . . 4 . . . . . . . Parts Stolen . | . . . . . . . . . . . . . . . . . . . . . . . . . . . . . . . . . . . Parts Stripped . | . . . . . . . . . . . . . . . . . . . . . . . . . . . . . . . . . . . Power Chain Reactions 8 | . . . . . . . . . . . . . 1 . . . 1 . 2 . . . 1 2 . . . . . . . . . 1 Missiles Intercepted . | . . . . . . . . . . . . . . . . . . . . . . . . . . . . . . . . . . . Alert | -11 -10 -10 -9 -9 -9 -8 -8 -7 -7 -7 -7 -6 -6 -6 -6 -6 -6 -5 -5 -5 -5 -5 -4 -4 -4 -4 -4 -4 -3 -3 -2 -2 -1 -1 ------- Run | Scr Mat Min Mat Min Exi Min Mat Fac Low Low Dat Pro Fac Low Low Zio Dee Pro Fac Upp Upp Zhi Pro Fac Was Fac Arm Lab Res Tes Res Qua Acc Com Peak Influence 1667 | . 414 419 334 143 . 415 564 874 . . . . 1448 . . . . . 1601 . . . . 973 340 537 327 . 198 568 721 405 514 1667 Initial 405 | . . 97 85 63 . . 83 213 . . . . 60 . . . . . 151 . . . . 283 340 238 262 . . 111 319 405 135 . Average 432 | . 156 312 154 69 . 276 421 421 . . . . 637 . . . . . 566 . . . . 736 340 366 153 . 103 307 508 260 312 764 Maximum Alert Level 5 | . 2 2 1 . . 2 2 3 . . . . 4 . . . . . 5 . . . . 3 1 2 1 . . 2 3 2 2 5 Low Security (%) 25 | 100 63 20 74 100 . 19 12 3 . . . . 4 . . . . . 5 . . . . . . . 58 . 100 32 . . 21 36 Level 1 32 | . 35 43 25 . . 73 13 53 . . . . 20 . . . . . 37 . . . . 13 100 75 41 . . 47 20 96 46 5 Level 2 24 | . . 35 . . . 7 74 21 . . . . 35 . . . . . 30 . . . . 9 . 24 . . . 19 77 3 31 24 Level 3 14 | . . . . . . . . 21 . . . . 33 . . . . . 20 . . . . 77 . . . . . . 2 . . 21 Level 4 2 | . . . . . . . . . . . . . 6 . . . . . 2 . . . . . . . . . . . . . . 10 Level 5 . | . . . . . . . . . . . . . . . . . . . 4 . . . . . . . . . . . . . . 1 High Security . | . . . . . . . . . . . . . . . . . . . . . . . . . . . . . . . . . . . Max Security . | . . . . . . . . . . . . . . . . . . . . . . . . . . . . . . . . . . . Squads Dispatched 85 | . 4 . 2 . . . 4 10 . . . . 8 . . . . . 13 . . . 1 5 . . 4 . 2 10 11 . 1 10 Investigation 31 | . 2 . 2 . . . 2 4 . . . . 3 . . . . . 7 . . . . 2 . . 1 . 1 . 1 . 1 5 Extermination 16 | . . . . . . . . 2 . . . . 2 . . . . . 3 . . . . 1 . . 3 . . 1 2 . . 2 Reinforcement 17 | . 2 . . . . . 2 2 . . . . 3 . . . . . 1 . . . . 2 . . . . 1 3 1 . . . Assault 7 | . . . . . . . . . . . . . . . . . . . 2 . . . 1 . . . . . . 1 . . . 3 Garrison 2 | . . . . . . . . 2 . . . . . . . . . . . . . . . . . . . . . . . . . . Intercept 12 | . . . . . . . . . . . . . . . . . . . . . . . . . . . . . . 5 7 . . . Construction Impeded 2 | . . . . . . . . 1 . . . . . . . . . . . . . . . 1 . . . . . . . . . . Haulers Reinforced 6 | . . . . . . . . . . . . . 2 . . . . . 1 . . . . 1 . . . . 1 . 1 . . . Stealth | -11 -10 -10 -9 -9 -9 -8 -8 -7 -7 -7 -7 -6 -6 -6 -6 -6 -6 -5 -5 -5 -5 -5 -4 -4 -4 -4 -4 -4 -3 -3 -2 -2 -1 -1 --------- Run | Scr Mat Min Mat Min Exi Min Mat Fac Low Low Dat Pro Fac Low Low Zio Dee Pro Fac Upp Upp Zhi Pro Fac Was Fac Arm Lab Res Tes Res Qua Acc Com Distress Signals 23 | . 1 . 1 . . . 1 . . . . . 2 . . . . . 1 . . . . 1 . . 2 . . . 1 . 1 12 Communications Jammed . | . . . . . . . . . . . . . . . . . . . . . . . . . . . . . . . . . . . Distress Signals . | . . . . . . . . . . . . . . . . . . . . . . . . . . . . . . . . . . . Times Spotted 659 | . 22 12 26 13 . 18 23 27 15 16 . 15 35 11 . . 29 16 48 9 19 . 41 29 . 9 40 1 7 31 36 3 10 98 Peak Tracking Total 9 | . 4 3 5 4 . 4 8 4 7 4 . 4 5 7 . . 6 5 6 4 5 . 8 7 . 6 5 1 1 8 9 1 6 7 Tactical Retreats 48 | . 1 1 4 1 . 2 1 1 . 2 . 1 . . . . 10 1 2 1 . . 3 . . 1 5 . . 1 5 . . 5 Traps | -11 -10 -10 -9 -9 -9 -8 -8 -7 -7 -7 -7 -6 -6 -6 -6 -6 -6 -5 -5 -5 -5 -5 -4 -4 -4 -4 -4 -4 -3 -3 -2 -2 -1 -1 ------- Run | Scr Mat Min Mat Min Exi Min Mat Fac Low Low Dat Pro Fac Low Low Zio Dee Pro Fac Upp Upp Zhi Pro Fac Was Fac Arm Lab Res Tes Res Qua Acc Com Traps Triggered 14 | . 1 . . . . . 1 . . . . . . . . . . . 2 . . . . 2 . . 1 . . 1 . 4 . 2 Indirectly 3 | . . . . . . . . . . . . . . . . . . . 1 . . . . 1 . . . . . . . . . 1 Trap Hack Attempts . | . . . . . . . . . . . . . . . . . . . . . . . . . . . . . . . . . . . Triggered . | . . . . . . . . . . . . . . . . . . . . . . . . . . . . . . . . . . . Disarmed . | . . . . . . . . . . . . . . . . . . . . . . . . . . . . . . . . . . . Reprogrammed . | . . . . . . . . . . . . . . . . . . . . . . . . . . . . . . . . . . . Reused 3 | . . . . . . . . . . 1 . . . . . . . . . . . . . . . . 2 . . . . . . . Traps Extracted . | . . . . . . . . . . . . . . . . . . . . . . . . . . . . . . . . . . . Installed 8 | . . . . 3 . 1 . . . 1 . 1 . . . . . . . . . . . . . . 2 . . . . . . . Triggered 5 | . . . . . . . . . 1 1 . . . . . . . . . . 1 . . . . . 2 . . . . . . . Machines | -11 -10 -10 -9 -9 -9 -8 -8 -7 -7 -7 -7 -6 -6 -6 -6 -6 -6 -5 -5 -5 -5 -5 -4 -4 -4 -4 -4 -4 -3 -3 -2 -2 -1 -1 ---------- Run | Scr Mat Min Mat Min Exi Min Mat Fac Low Low Dat Pro Fac Low Low Zio Dee Pro Fac Upp Upp Zhi Pro Fac Was Fac Arm Lab Res Tes Res Qua Acc Com Machines Disabled 91 | . . . . . . . 2 4 . 1 . . 31 . . . 3 . 13 1 . . . 2 . 2 4 3 1 7 3 1 . 13 Max in Single Turn 6 | . . . . . . . 1 1 . 1 . . 6 . . . 2 . 3 1 . . . 1 . 1 1 1 1 1 1 1 . 2 Garrison Access 6 | . . . . . . . . 1 . . . . 1 . . . . . 2 . . . . . . . . . . 1 1 . . . Phase Generator 1 | . . . . . . . . . . . . . . . . . . . . . . . . . . . . . . . . . . 1 Machines Sabotaged . | . . . . . . . . . . . . . . . . . . . . . . . . . . . . . . . . . . . Garrisons Compromised . | . . . . . . . . . . . . . . . . . . . . . . . . . . . . . . . . . . . Overloaded Fab Kills 6 | . . . . . . . . . . . . . . . . . . . 6 . . . . . . . . . . . . . . . Fab Network Shutdowns 2 | . . . . . . . . . . . . . 1 . . . . . 1 . . . . . . . . . . . . . . . Hacking | -11 -10 -10 -9 -9 -9 -8 -8 -7 -7 -7 -7 -6 -6 -6 -6 -6 -6 -5 -5 -5 -5 -5 -4 -4 -4 -4 -4 -4 -3 -3 -2 -2 -1 -1 --------- Run | Scr Mat Min Mat Min Exi Min Mat Fac Low Low Dat Pro Fac Low Low Zio Dee Pro Fac Upp Upp Zhi Pro Fac Was Fac Arm Lab Res Tes Res Qua Acc Com Machines Accessed 130 | . 7 . 7 . 1 . 5 6 . 2 4 . 12 1 1 . . . 20 2 . 4 . 5 . 7 9 . 2 3 7 8 5 12 Terminals 89 | . 6 . 5 . . . 4 4 . . . . 9 . . . . . 10 1 . . . 4 . 7 6 . 2 2 6 8 4 11 Fabricators 10 | . . . . . . . . . . . . . 2 . . . . . 4 . . . . 1 . . 3 . . . . . . . Repair Stations 1 | . . . . . . . . . . . . . . . . . . . . . . . . . . . . . . . . . . 1 Recycling Units 5 | . 1 . 2 . . . 1 . . . . . . . . . . . 1 . . . . . . . . . . . . . . . Scanalyzers 2 | . . . . . . . . . . . . . . . . . . . 2 . . . . . . . . . . . . . . . Garrison Access 9 | . . . . . . . . 2 . . . . 1 . . . . . 3 . . . . . . . . . . 1 1 . 1 . Total Hacks 367 | . 17 . 14 . 1 . 13 16 . 5 27 . 33 1 1 . . . 65 9 . 17 . 12 . 17 25 . 4 9 22 19 15 25 Successful 214 | . 10 . 13 . 1 . 6 6 . 5 27 . 15 1 1 . . . 34 8 . 17 . 2 . 8 16 . 1 3 8 12 7 13 Failed 152 | . 7 . 1 . . . 7 10 . . . . 18 . . . . . 30 1 . . . 10 . 9 9 . 3 6 14 7 8 12 Catastrophic 28 | . 1 . . . . . 2 1 . . . . 4 . . . . . 6 1 . . . 2 . 1 3 . 1 . 1 2 . 3 Database Lockouts 1 | . . . . . . . . . . . . . . . . . . . 1 . . . . . . . . . . . . . . . Manual 132 | . 9 . 6 . . . 9 6 . . . . 6 . . 4 . . 20 1 . . . 5 . 9 8 1 . 3 7 11 14 13 Terminals 244 | . 16 . 12 . . . 12 11 . . . . 25 . . . . . 37 1 . . . 9 . 17 18 . 4 8 20 19 13 22 Fabricators 35 | . . . . . . . . . . . . . 6 . . . . . 19 . . . . 3 . . 7 . . . . . . . Repair Stations 3 | . . . . . . . . . . . . . . . . . . . . . . . . . . . . . . . . . . 3 Recycling Units 6 | . 1 . 2 . . . 1 . . . . . . . . . . . 2 . . . . . . . . . . . . . . . Scanalyzers 3 | . . . . . . . . . . . . . . . . . . . 3 . . . . . . . . . . . . . . . Garrison Access 16 | . . . . . . . . 5 . . . . 2 . . . . . 4 . . . . . . . . . . 1 2 . 2 . Terminal Hacks 152 | . 5 . 9 . 1 . 5 5 . 5 27 . 10 1 1 . . . 19 8 . 17 . 1 . 5 8 . 1 1 5 7 5 6 Record 30 | . . . . . 1 . . . . 4 11 . . . . . . . . 8 . 5 . . . . . . . . . 1 . . Part Schematic 18 | . . . . . . . . . . . 8 . . . . . . . 6 . . 4 . . . . . . . . . . . . Robot Schematic 5 | . . . . . . . . . . . 5 . . . . . . . . . . . . . . . . . . . . . . . Robot Analysis 4 | . . . . . . . . . . . . . . . . . . . . . . 4 . . . . . . . . . . . . Prototype ID Bank 18 | . 1 . 1 . . . . 2 . . 3 . 1 . . . . . . . . 4 . 1 . 1 1 . . . 1 1 . 1 Open Door 4 | . . . . . . . . . . 1 . . . 1 1 . . . . . . . . . . . . . . . 1 . . . Level Access Points 1 | . . . . . . . . 1 . . . . . . . . . . . . . . . . . . . . . . . . . . Branch Access Points 7 | . 1 . 1 . . . 1 1 . . . . . . . . . . 1 . . . . . . 1 . . . . . 1 . . Emergency Access Points 1 | . . . . . . . . . . . . . . . . . . . . . . . . . . . 1 . . . . . . . Terminal Index 3 | . . . . . . . . . . . . . 1 . . . . . 1 . . . . . . . . . . . . . . 1 Alert Level 7 | . . . . . . . 1 . . . . . 1 . . . . . 1 . . . . . . . . . . . 1 1 1 1 Unreport Threat 20 | . . . 3 . . . . . . . . . 2 . . . . . 2 . . . . . . . 5 . . . 2 2 4 . Locate Traps 9 | . 1 . . . . . 1 . . . . . 2 . . . . . 2 . . . . . . 1 . . . . . . . 2 Dispatch Records 1 | . . . . . . . . . . . . . . . . . . . . . . . . . . . 1 . . . . . . . Surveillance Status 2 | . . . 1 . . . . 1 . . . . . . . . . . . . . . . . . . . . . . . . . . Recall Investigation 1 | . . . . . . . 1 . . . . . . . . . . . . . . . . . . . . . . . . . . . Hauler Manifests 9 | . . . 2 . . . . . . . . . 2 . . . . . 3 . . . . . . 1 . . 1 . . . . . Registered Components 4 | . . . 1 . . . 1 . . . . . 1 . . . . . . . . . . . . 1 . . . . . . . . Registered Prototypes 1 | . . . . . . . . . . . . . . . . . . . 1 . . . . . . . . . . . . . . . Zone Layout 5 | . 2 . . . . . . . . . . . . . . . . . 2 . . . . . . . . . . . . 1 . . Protovariant Controls 1 | . . . . . . . . . . . . . . . . . . . . . . . . . . . . . . 1 . . . . Disengage Seal 1 | . . . . . . . . . . . . . . . . . . . . . . . . . . . . . . . . . . 1 Fabricator Hacks 14 | . . . . . . . . . . . . . 2 . . . . . 6 . . . . 1 . . 5 . . . . . . . Load Schematic 8 | . . . . . . . . . . . . . 1 . . . . . 3 . . . . 1 . . 3 . . . . . . . Build 6 | . . . . . . . . . . . . . 1 . . . . . 3 . . . . . . . 2 . . . . . . . Repair Station Hacks . | . . . . . . . . . . . . . . . . . . . . . . . . . . . . . . . . . . . Recycling Unit Hacks 1 | . . . . . . . . . . . . . . . . . . . 1 . . . . . . . . . . . . . . . Retrieve Components 1 | . . . . . . . . . . . . . . . . . . . 1 . . . . . . . . . . . . . . . Scanalyzer . | . . . . . . . . . . . . . . . . . . . . . . . . . . . . . . . . . . . Garrison Access Hacks 5 | . . . . . . . . . . . . . 1 . . . . . 2 . . . . . . . . . . 1 1 . . . Seal Access 5 | . . . . . . . . . . . . . 1 . . . . . 2 . . . . . . . . . . 1 1 . . . Unauthorized Hacks 42 | . 5 . 4 . . . 1 1 . . . . 2 . . . . . 6 . . . . . . 3 3 . . 1 2 5 2 7 Terminals 32 | . 4 . 2 . . . . . . . . . 2 . . . . . 2 . . . . . . 3 3 . . 1 2 5 2 6 Track 8 | . 2 . . . . . . . . . . . 1 . . . . . . . . . . . . . 1 . . . . 2 . 2 Assimilate 1 | . . . . . . . . . . . . . . . . . . . . . . . . . . . . . . 1 . . . . Botnet 20 | . . . 1 . . . . . . . . . 1 . . . . . 2 . . . . . . 3 2 . . . 2 3 2 4 Disrupt 3 | . 2 . 1 . . . . . . . . . . . . . . . . . . . . . . . . . . . . . . . Fabricators 2 | . . . . . . . . . . . . . . . . . . . 2 . . . . . . . . . . . . . . . Overload 2 | . . . . . . . . . . . . . . . . . . . 2 . . . . . . . . . . . . . . . Repair Stations 1 | . . . . . . . . . . . . . . . . . . . . . . . . . . . . . . . . . . 1 Mechanics 1 | . . . . . . . . . . . . . . . . . . . . . . . . . . . . . . . . . . 1 Recycling Units 4 | . 1 . 2 . . . 1 . . . . . . . . . . . . . . . . . . . . . . . . . . . Tunnel 4 | . 1 . 2 . . . 1 . . . . . . . . . . . . . . . . . . . . . . . . . . . Scanalyzers 2 | . . . . . . . . . . . . . . . . . . . 2 . . . . . . . . . . . . . . . Extract 2 | . . . . . . . . . . . . . . . . . . . 2 . . . . . . . . . . . . . . . Garrison Access 1 | . . . . . . . . 1 . . . . . . . . . . . . . . . . . . . . . . . . . . Jam 1 | . . . . . . . . 1 . . . . . . . . . . . . . . . . . . . . . . . . . . Data Cores Recovered 1 | . . . . . . . . . . . . . . . . . . . 1 . . . . . . . . . . . . . . . Used 1 | . . . . . . . . . . . . . . . . . . . 1 . . . . . . . . . . . . . . . Hacking Detections 95 | . 5 . 5 . . . 4 6 . . . . 10 . . . . . 16 1 . . . 5 . 6 7 . 2 2 6 7 3 10 Full Trace Events 19 | . 1 . . . . . . 3 . . . . 3 . . . . . 3 . . . . 2 . . 1 . 1 . 1 . 1 3 Feedback Events . | . . . . . . . . . . . . . . . . . . . . . . . . . . . . . . . . . . . Feedback Blocked . | . . . . . . . . . . . . . . . . . . . . . . . . . . . . . . . . . . . Robot Schematics Acquired 5 | . . . . . . . . . . . 5 . . . . . . . . . . . . . . . . . . . . . . . Robots Built . | . . . . . . . . . . . . . . . . . . . . . . . . . . . . . . . . . . . Matter . | . . . . . . . . . . . . . . . . . . . . . . . . . . . . . . . . . . . Time . | . . . . . . . . . . . . . . . . . . . . . . . . . . . . . . . . . . . Total Robot Build Rating . | . . . . . . . . . . . . . . . . . . . . . . . . . . . . . . . . . . . Part Schematics Acquired 23 | . . . . . . . . . . . 8 . . . . . . . 11 . . 4 . . . . . . . . . . . . Parts Built 11 | . . . . . . . . . . . . . 1 . . . . . 6 . . . . . . . 4 . . . . . . . Matter 1433 | . . . . . . . . . . . . . 285 . . . . . 658 . . . . . . . 490 . . . . . . . Time 538 | . . . . . . . . . . . . . 76 . . . . . 217 . . . . . . . 245 . . . . . . . Total Part Build Rating 73 | . . . . . . . . . . . . . 5 . . . . . 38 . . . . . . . 30 . . . . . . . Parts Repaired . | . . . . . . . . . . . . . . . . . . . . . . . . . . . . . . . . . . . Time . | . . . . . . . . . . . . . . . . . . . . . . . . . . . . . . . . . . . Parts Recycled . | . . . . . . . . . . . . . . . . . . . . . . . . . . . . . . . . . . . Recycled Matter . | . . . . . . . . . . . . . . . . . . . . . . . . . . . . . . . . . . . Retrieved Matter . | . . . . . . . . . . . . . . . . . . . . . . . . . . . . . . . . . . . Retrieved Components 1 | . . . . . . . . . . . . . . . . . . . 1 . . . . . . . . . . . . . . . Parts Scanalyzed . | . . . . . . . . . . . . . . . . . . . . . . . . . . . . . . . . . . . Part Schematics Acquired . | . . . . . . . . . . . . . . . . . . . . . . . . . . . . . . . . . . . Parts Damaged . | . . . . . . . . . . . . . . . . . . . . . . . . . . . . . . . . . . . Bothacking | -11 -10 -10 -9 -9 -9 -8 -8 -7 -7 -7 -7 -6 -6 -6 -6 -6 -6 -5 -5 -5 -5 -5 -4 -4 -4 -4 -4 -4 -3 -3 -2 -2 -1 -1 ------------ Run | Scr Mat Min Mat Min Exi Min Mat Fac Low Low Dat Pro Fac Low Low Zio Dee Pro Fac Upp Upp Zhi Pro Fac Was Fac Arm Lab Res Tes Res Qua Acc Com Used RIF Installer . | . . . . . . . . . . . . . . . . . . . . . . . . . . . . . . . . . . . Robots Hacked 2 | . . . . . . . . . . . . . . . . . . . . . . . . . . . . . . . . . . 2 Non-combat . | . . . . . . . . . . . . . . . . . . . . . . . . . . . . . . . . . . . Combat . | . . . . . . . . . . . . . . . . . . . . . . . . . . . . . . . . . . . Robot Hacks Applied . | . . . . . . . . . . . . . . . . . . . . . . . . . . . . . . . . . . . Manual 2 | . . . . . . . . . . . . . . . . . . . . . . . . . . . . . . . . . . 2 Relay Couplers Released 2 | . . . . . . . . . . . . . . . . . . . . . . . . . . . . . . . 2 . . . Programmers 2 | . . . . . . . . . . . . . . . . . . . . . . . . . . . . . . . 2 . . . Robots Rewired 7 | . . . . . . . . . . 3 . . . 2 . . . . . . . . 2 . . . . . . . . . . . Allies Hacked . | . . . . . . . . . . . . . . . . . . . . . . . . . . . . . . . . . . . Hacks Repelled . | . . . . . . . . . . . . . . . . . . . . . . . . . . . . . . . . . . . Allies | -11 -10 -10 -9 -9 -9 -8 -8 -7 -7 -7 -7 -6 -6 -6 -6 -6 -6 -5 -5 -5 -5 -5 -4 -4 -4 -4 -4 -4 -3 -3 -2 -2 -1 -1 -------- Run | Scr Mat Min Mat Min Exi Min Mat Fac Low Low Dat Pro Fac Low Low Zio Dee Pro Fac Upp Upp Zhi Pro Fac Was Fac Arm Lab Res Tes Res Qua Acc Com Total Allies 17 | . . 3 . . . . . . . 3 . 1 . 2 . . . . . . . . 2 . . . . . . 1 . . 3 2 Largest Group 3 | . . 3 3 . . . . . . 3 . 1 . 2 2 2 2 . . . . . 2 2 . . . . . 1 . . 3 2 Highest-Rated Group 444 | . . 40 40 . . . . . . 60 . 94 . 58 58 58 58 . . . . . 60 60 . . . . . 10 . . 368 444 Highest-Rated Ally 222 | . . 16 16 . . . . . . 20 . 94 . 29 29 29 29 . . . . . 30 30 . . . . . 10 . . 131 222 Total Orders . | . . . . . . . . . . . . . . . . . . . . . . . . . . . . . . . . . . . Ally Attacks 119 | . . 8 29 . . . . . . 13 . 32 . . . . 5 . . . . . . . . . . . . . . . 9 23 Total Damage 3633 | . . 41 377 . . . . . . 283 . 880 . . . . 18 . . . . . . . . . . . . . . . 292 1742 Kills 19 | . . 2 2 . . . . . . 3 . 8 . . . . . . . . . . . . . . . . . . . . 1 3 Allies Corrupted . | . . . . . . . . . . . . . . . . . . . . . . . . . . . . . . . . . . . Allies Melted . | . . . . . . . . . . . . . . . . . . . . . . . . . . . . . . . . . . . Intel | -11 -10 -10 -9 -9 -9 -8 -8 -7 -7 -7 -7 -6 -6 -6 -6 -6 -6 -5 -5 -5 -5 -5 -4 -4 -4 -4 -4 -4 -3 -3 -2 -2 -1 -1 ------- Run | Scr Mat Min Mat Min Exi Min Mat Fac Low Low Dat Pro Fac Low Low Zio Dee Pro Fac Upp Upp Zhi Pro Fac Was Fac Arm Lab Res Tes Res Qua Acc Com Robot Analysis Total 4 | . . . . . . . . . . . . . . . . . . . . . . 4 . . . . . . . . . . . . Derelict Logs Recovered 15 | . . . . 1 . . . . 2 . . 1 . 1 2 1 . 3 . 1 2 . 1 . . . . . . . . . . . Drone Launches . | . . . . . . . . . . . . . . . . . . . . . . . . . . . . . . . . . . . Drone Recoveries . | . . . . . . . . . . . . . . . . . . . . . . . . . . . . . . . . . . . Exploration | -11 -10 -10 -9 -9 -9 -8 -8 -7 -7 -7 -7 -6 -6 -6 -6 -6 -6 -5 -5 -5 -5 -5 -4 -4 -4 -4 -4 -4 -3 -3 -2 -2 -1 -1 ------------- Run | Scr Mat Min Mat Min Exi Min Mat Fac Low Low Dat Pro Fac Low Low Zio Dee Pro Fac Upp Upp Zhi Pro Fac Was Fac Arm Lab Res Tes Res Qua Acc Com Turns Passed 23828 | 43 437 402 513 494 110 428 511 1184 938 950 83 887 1579 496 431 432 1448 637 1840 878 625 95 1193 714 182 375 1438 348 185 632 970 212 379 1759 Spaces Moved 25121 | 43 357 351 423 511 138 365 373 930 747 746 84 743 1556 626 734 800 1346 902 2026 949 856 136 1058 851 265 352 1509 262 246 647 1350 461 461 1917 Core 7 | 7 . . . . . . . . . . . . . . . . . . . . . . . . . . . . . . . . . . Treads . | . . . . . . . . . . . . . . . . . . . . . . . . . . . . . . . . . . . Legs . | . . . . . . . . . . . . . . . . . . . . . . . . . . . . . . . . . . . Wheels 6524 | 36 357 351 423 511 138 365 373 930 747 746 84 743 719 . . . . . 1 . . . . . . . . . . . . . . . Hover 18590 | . . . . . . . . . . . . . 837 626 734 800 1346 902 2025 949 856 136 1058 851 265 352 1509 262 246 647 1350 461 461 1917 Flight . | . . . . . . . . . . . . . . . . . . . . . . . . . . . . . . . . . . . Fastest Speed 20 | 50 80 80 80 80 80 80 80 86 100 100 100 100 50 50 50 50 25 50 50 58 58 58 58 58 54 54 38 40 40 20 20 20 20 40 Average Speed 59 | 75 80 80 80 80 80 80 86 93 100 100 100 100 74 50 50 50 48 50 53 58 58 58 58 58 54 54 49 40 40 38 36 22 37 40 Slowest Speed 156 | 80 80 80 80 80 80 80 90 100 100 100 100 100 110 50 50 50 50 50 130 58 58 58 60 58 58 54 125 40 40 44 156 40 40 40 Overloaded Moves . | . . . . . . . . . . . . . . . . . . . . . . . . . . . . . . . . . . . Propulsion Burnouts . | . . . . . . . . . . . . . . . . . . . . . . . . . . . . . . . . . . . Robots Hopped . | . . . . . . . . . . . . . . . . . . . . . . . . . . . . . . . . . . . Cave-ins Triggered . | . . . . . . . . . . . . . . . . . . . . . . . . . . . . . . . . . . . Teleports 1 | . . . . . . . . . . . . . . . . . . . . . . . . . . . . 1 . . . . . . Exploration Rate (%) 62 | 3 80 69 48 83 49 82 43 33 74 80 71 88 48 74 71 88 82 90 46 85 95 60 92 28 88 15 72 98 9 63 43 54 15 60 Regions Visited 34 Branch Regions 22 Pre-discovered Areas 17 | . 1 1 2 1 1 . 1 . 1 . 1 . . 1 . 2 . 1 . . . 3 1 . . . . . . . . . . . Known Exits Taken 26 | . 1 . 1 . . . . 1 1 1 1 1 1 1 1 1 1 1 1 1 1 1 1 . . 1 1 1 1 1 1 1 1 . Unknown Exits Taken 6 | 1 . 1 . 1 1 1 1 . . . . . . . . . . . . . . . . . . . . . . . . . . . Scrap Searched 46 | . . 1 . 2 . 1 . . 11 7 . 2 . 2 5 3 . 3 . 2 4 . 3 . . . . . . . . . . . Spaces Dug 152 | . . . . . . . . 1 3 1 . . 19 . . . 15 . 13 . 2 . . 9 . 9 8 . 3 3 25 17 6 18 Terrain Destroyed 767 | . . . . . . . . 16 8 12 . 6 353 13 . . 61 9 34 . 11 . 15 40 . 10 10 3 3 7 31 18 6 101 Melee . | . . . . . . . . . . . . . . . . . . . . . . . . . . . . . . . . . . . Projectile 324 | . . . . . . . . 16 8 12 . 6 40 13 . . 45 9 22 . 11 . 10 21 . 10 10 3 3 7 31 18 6 23 AOE 443 | . . . . . . . . . . . . . 313 . . . 16 . 12 . . . 5 19 . . . . . . . . . 78 Terrain Rammed . | . . . . . . . . . . . . . . . . . . . . . . . . . . . . . . . . . . . Walls Destroyed . | . . . . . . . . . . . . . . . . . . . . . . . . . . . . . . . . . . . Machines Disabled . | . . . . . . . . . . . . . . . . . . . . . . . . . . . . . . . . . . . Actions | -11 -10 -10 -9 -9 -9 -8 -8 -7 -7 -7 -7 -6 -6 -6 -6 -6 -6 -5 -5 -5 -5 -5 -4 -4 -4 -4 -4 -4 -3 -3 -2 -2 -1 -1 --------- Run | Scr Mat Min Mat Min Exi Min Mat Fac Low Low Dat Pro Fac Low Low Zio Dee Pro Fac Upp Upp Zhi Pro Fac Was Fac Arm Lab Res Tes Res Qua Acc Com Total 32430 | 51 452 421 541 563 137 449 468 1111 894 893 83 844 1848 772 796 831 2042 1022 2640 1255 940 151 1536 977 299 482 2131 501 332 1023 1811 562 666 2906 Wait 4101 | . 44 25 72 21 . 39 19 62 77 48 . 31 127 70 58 31 506 33 373 274 23 3 312 17 4 73 485 152 54 228 250 76 152 362 Move 25088 | 42 356 350 422 510 137 364 372 929 746 745 83 742 1555 625 733 799 1345 901 2025 948 855 135 1057 851 264 351 1508 261 245 646 1349 460 460 1917 Hop . | . . . . . . . . . . . . . . . . . . . . . . . . . . . . . . . . . . . Pick Up 95 | 1 3 3 2 1 . . 2 . 5 2 . 3 7 2 2 1 10 . 6 1 3 . 6 . 2 . 4 3 1 3 1 . 3 18 Fast Attach 216 | 6 3 2 3 . . . 4 13 3 1 . 4 19 3 . . 26 3 25 2 . 7 2 8 2 . 20 12 . 18 11 5 . 14 Attach 13 | . . . . . . . . . 1 . . . . 1 . . 4 . . . . . . . . . . 2 1 1 1 . . 2 Detach 3 | . . . . . . . . . . . . . . 1 . . . . . . . . . . . . 1 . . . . . . 1 Swap 37 | . 1 . . 1 . . 2 1 2 . . 2 2 1 . . 4 . 4 1 . . . . . . 5 3 1 1 2 . . 4 Drop 283 | 2 4 3 3 2 . 1 6 14 5 3 . 6 22 6 2 . 43 2 30 2 3 6 7 7 4 1 22 12 1 22 11 . 1 30 Fire 1666 | . 29 26 26 15 . 23 42 63 25 30 . 20 88 19 1 . 70 41 135 21 32 . 70 67 6 33 63 50 21 78 142 21 30 379 Melee . | . . . . . . . . . . . . . . . . . . . . . . . . . . . . . . . . . . . Ram . | . . . . . . . . . . . . . . . . . . . . . . . . . . . . . . . . . . . Kick . | . . . . . . . . . . . . . . . . . . . . . . . . . . . . . . . . . . . Crush . | . . . . . . . . . . . . . . . . . . . . . . . . . . . . . . . . . . . Escape Stasis 2 | . . . . . . . . . . . . . . . . . . . 2 . . . . . . . . . . . . . . . Rewire 81 | . . . . . . . . . . 41 . . . 14 . . . . . . . . 21 . . . . . 5 . . . . . Trap 8 | . . . . 3 . 1 . . . 1 . 1 . . . . . . . . . . . . . . 2 . . . . . . . Miscellaneous 837 | . 12 12 13 10 . 21 21 29 30 22 . 35 28 30 . . 34 42 40 6 24 . 61 27 17 24 21 6 3 26 44 . 20 179 Route ------- -11/Scrapyard -10/Materials (discovered 2 exits: *Mat / *Min) -10/Mines (discovered 2 exits: *Mat x2) -9/Materials -9/Mines (discovered 3 exits: *Mat x2 / *Exi) -9/Exiles -8/Mines (discovered 2 exits: *Mat x2) -8/Materials -7/Factory (discovered 7 exits: Fac x4 / Sto / *Low x2) -7/Lower Caves (discovered 2 exits: *Low / *Dat) -7/Lower Caves (discovered 2 exits: *Fac / *Dat) -7/Data Miner -6/Proximity Caves -6/Factory (discovered 3 exits: *Fac x2 / *Low) -6/Lower Caves -6/Lower Caves -6/Zion (discovered 2 exits: *Dee / [*Pro]) -6/Deep Caves -5/Proximity Caves -5/Factory (discovered 5 exits: *Fac x3 / *Upp x2) -5/Upper Caves -5/Upper Caves (discovered 2 exits: *Fac / *Zhi) -5/Zhirov -4/Proximity Caves -4/Factory (discovered 3 exits: *Res x2 / *Upp) -4/Waste -4/Factory (discovered 5 exits: Upp x2 / *Ext x2 / *Arm) -4/Armory (discovered 3 exits: Res x2 / *Lab) -4/Lab -3/Research -3/Testing -2/Research (discovered 2 exits: *Qua x2) -2/Quarantine -1/Access (discovered 2 exits: Sur / *Com) -1/Command (discovered 2 exits: *Sur x2) By MAIN.C's Side History --------- Turn | Location | Event 1 | -11/Scrapyard | Upgraded with Propulsion slot (x1) 1 | -11/Scrapyard | Upgraded with Utility slot (x1) 1 | -11/Scrapyard | Upgraded with Weapon slot (x1) 6 | -11/Scrapyard | Discovered new exit (range 15) 44 | -11/Scrapyard | Entered Materials 98 | -10/Materials | Identified exit to Mines 144 | -10/Materials | Discovered new exit (range 8) 316 | -10/Materials | Build established: Mutant 437 | -10/Materials | Reached level 2 481 | -10/Materials | Entered Mines 568 | -10/Mines | Reached level 3 588 | -10/Mines | Assisted by bots powering up and referring to "LRC-V3" 645 | -10/Mines | Joined a pair of Derelicts in attacking an 0b10 outpost 673 | -10/Mines | Upgraded with Utility slot (x1) 742 | -10/Mines | Discovered new exit (range 10) 794 | -10/Mines | Received a Rocket Launcher from a helpful Derelict 812 | -10/Mines | Discovered new exit (range 10) 843 | -10/Mines | Learned location of Storage (-7) 883 | -10/Mines | Entered Materials 883 | -9/Materials | Accompanied by 3 allies 885 | -9/Materials | Reached level 4 945 | -9/Materials | Identified exit to Mines 1054 | -9/Materials | Reached level 5 1066 | -9/Materials | Upgraded with Utility slot (x1) 1066 | -9/Materials | Upgraded with Weapon slot (x1) 1324 | -9/Materials | Reached level 6 1396 | -9/Materials | Entered Mines 1426 | -9/Mines | Discovered new exit (range 16) 1463 | -9/Mines | Build established: Scavenger-Gunner 1598 | -9/Mines | Assembled infested the area 1606 | -9/Mines | Found a hidden stash of uninstalled traps 1624 | -9/Mines | Discovered new exit (range 9) 1886 | -9/Mines | Deemed a non-threat by the Exiles lab entrance 1886 | -9/Mines | Discovered new exit (range 5) 1890 | -9/Mines | Entered Exiles 1910 | -9/Exiles | Met 8R-AWN 1923 | -9/Exiles | Met EX-HEX 1955 | -9/Exiles | Met EX-DEC 1959 | -9/Exiles | Learned location of Zion (-6) 1987 | -9/Exiles | Discovered new exit (range 10) 2000 | -9/Exiles | Entered Mines 2000 | -8/Mines | Reached level 7 2113 | -8/Mines | Reached level 8 2151 | -8/Mines | Discovered new exit (range 5) 2389 | -8/Mines | Discovered new exit (range 12) 2428 | -8/Mines | Entered Materials 2430 | -8/Materials | Reached level 9 2526 | -8/Materials | Reached level 10 2573 | -8/Materials | Destroyed 7 combat bots 2841 | -8/Materials | Reached level 11 2930 | -8/Materials | Discovered new exit (range 11) 2939 | -8/Materials | Entered Factory 2941 | -7/Factory | Reached level 12 3006 | -7/Factory | Upgraded with Propulsion slot (x1) 3147 | -7/Factory | Discovered new exit (range 3) 3218 | -7/Factory | Identified exit to Lower Caves 3287 | -7/Factory | Identified exit to Storage 3547 | -7/Factory | Identified exit to Factory 3547 | -7/Factory | Reached level 13 3554 | -7/Factory | Upgraded with Power slot (x1) 3554 | -7/Factory | Upgraded with Propulsion slot (x1) 3554 | -7/Factory | Upgraded with Utility slot (x1) 3635 | -7/Factory | Garrison activated, responded to threat 3780 | -7/Factory | Garrison activated, responded to threat 3837 | -7/Factory | Reached level 14 3917 | -7/Factory | Build established: Gunner 4123 | -7/Factory | Entered Lower Caves 4125 | -7/Lower Caves | Reached level 15 4130 | -7/Lower Caves | Encountered a Warlord checkpoint 4204 | -7/Lower Caves | Acquired the password to a Derelict Tinkerer's latest research 4373 | -7/Lower Caves | Caught by Unaware searching for contraband prototypes 4444 | -7/Lower Caves | Found Alien Artifact 4444 | -7/Lower Caves | Identified Core Expander 4444 | -7/Lower Caves | Installed Core Expander, added new Weapon slot 4541 | -7/Lower Caves | Attracted the attention of an 0b10 checkpoint 4630 | -7/Lower Caves | A Derelict revealed a hidden shortcut to meet someone special 4631 | -7/Lower Caves | Learned Factory trap positions 4676 | -7/Lower Caves | Identified exit to Data Miner 4876 | -7/Lower Caves | Build established: Scavenger-Gunner 4892 | -7/Lower Caves | Destroyed 7 combat bots 4972 | -7/Lower Caves | Discovered new exit (range 12) 5016 | -7/Lower Caves | Upgraded with Utility slot (x1) 5021 | -7/Lower Caves | Identified exit to Lower Caves 5061 | -7/Lower Caves | Entered another Lower Caves area 5082 | -7/Lower Caves | Attacked by a delusional Derelict stockpiling Unaware 5096 | -7/Lower Caves | Discovered exit to Factory (range 15) 5186 | -7/Lower Caves | Learned Research garrison access intel 5186 | -7/Lower Caves | Learned Armory stockpile data 5388 | -7/Lower Caves | Build established: Scavenger-Skirmisher 5514 | -7/Lower Caves | Reached level 16 5650 | -7/Lower Caves | Attracted the attention of an 0b10 checkpoint 5797 | -7/Lower Caves | Encountered a Warlord checkpoint 5974 | -7/Lower Caves | Discovered exit to Data Miner (range 20) 6011 | -7/Lower Caves | Entered Data Miner 6011 | -7/Data Miner | Discovered new exit (range 6) 6020 | -7/Data Miner | Identified exit to Proximity Caves 6032 | -7/Data Miner | Met Data Miner 6056 | -7/Data Miner | Learned location of Section 7 (-2) 6056 | -7/Data Miner | Acquired the access code to Warlord's prototype stash 6069 | -7/Data Miner | Received God Mode back door access code from Data Miner 6094 | -7/Data Miner | Entered Proximity Caves 6096 | -6/Proximity Caves | Reached level 17 6150 | -6/Proximity Caves | Escorted by Enhanced Grunt 6239 | -6/Proximity Caves | Learned location of 1 exit from Factory 6327 | -6/Proximity Caves | Spotted B-75 Beast 6343 | -6/Proximity Caves | Destroyed B-75 Beast 6532 | -6/Proximity Caves | Discovered exit to Factory (range 13) 6703 | -6/Proximity Caves | Reached level 18 6732 | -6/Proximity Caves | Build established: Skirmisher 6806 | -6/Proximity Caves | Found Prototype Device 6806 | -6/Proximity Caves | Identified Exp. Thermal Shield 6981 | -6/Proximity Caves | Entered Factory 6982 | -6/Factory | Identified exit to Lower Caves 6983 | -6/Factory | Loaded intel: 79 trap records 7082 | -6/Factory | Local fabrication network quarantined 7084 | -6/Factory | Fabricated Exp. Targeting Computer? 7157 | -6/Factory | Reached level 19 7262 | -6/Factory | Upgraded with Propulsion slot (x1) 7333 | -6/Factory | Discovered new exit (range 16) 7343 | -6/Factory | Upgraded with Utility slot (x1) 7368 | -6/Factory | Identified exit to Factory 7700 | -6/Factory | Incoming investigation squad redirected 7897 | -6/Factory | Discovered exit to Factory (range 15) 8005 | -6/Factory | Upgraded with Utility slot (x1) 8209 | -6/Factory | Build established: Scout 8294 | -6/Factory | Incoming investigation squad redirected 8484 | -6/Factory | Reached level 20 8560 | -6/Factory | Entered Lower Caves 8570 | -6/Lower Caves | Encountered a Warlord checkpoint 8830 | -6/Lower Caves | Attracted the attention of an 0b10 outpost 8916 | -6/Lower Caves | Destroyed 7 combat bots 8937 | -6/Lower Caves | Discovered new exit (range 20) 9048 | -6/Lower Caves | Identified exit to Lower Caves 9056 | -6/Lower Caves | Entered another Lower Caves area 9056 | -6/Lower Caves | Accompanied by 2 allies 9084 | -6/Lower Caves | Learned location of 1 exit from Factory 9277 | -6/Lower Caves | Learned 4 Factory zone layouts 9281 | -6/Lower Caves | Discovered new exit (range 10) 9285 | -6/Lower Caves | Identified exit to Zion 9487 | -6/Lower Caves | Entered Zion 9487 | -6/Zion | Accompanied by 2 allies 9525 | -6/Zion | Discovered new exit (range 10) 9534 | -6/Zion | Learned location of Warlord (-4) 9550 | -6/Zion | System corruption cleaned by Quarantine Array 9649 | -6/Zion | Given the Hacking Drone Bay 9663 | -6/Zion | Learned Factory emergency access door positions 9688 | -6/Zion | Acquired unknown access codes intercepted by a Zionite 9737 | -6/Zion | Learned Factory trap positions 9881 | -6/Zion | Opened final containment barrier to the Deep Caves 9889 | -6/Zion | Discovered new exit (range 3) 9889 | -6/Zion | Saw the warning signs outside the Deep Caves entrance 9891 | -6/Zion | Identified exit to Deep Caves 9919 | -6/Zion | Entered Deep Caves 9919 | -6/Deep Caves | Accompanied by 2 allies 10020 | -6/Deep Caves | Z-Facility disabled 10054 | -6/Deep Caves | Attacked by Z-Imprinter 10067 | -6/Deep Caves | Destroyed Z-Imprinter 10093 | -6/Deep Caves | Found Prototype Protection 10093 | -6/Deep Caves | Identified Zio. Weapon Casing 10120 | -6/Deep Caves | Found Prototype Device 10120 | -6/Deep Caves | Identified Zio. Metafield Generator 10411 | -6/Deep Caves | Found Zio. Weapon Casing 10581 | -6/Deep Caves | Spotted as-68263 10625 | -6/Deep Caves | Destroyed as-68263 10701 | -6/Deep Caves | Discovered new exit (range 6) 10787 | -6/Deep Caves | Spotted as-19391 10796 | -6/Deep Caves | Destroyed as-19391 10809 | -6/Deep Caves | Exposed GOLEM chamber 11046 | -6/Deep Caves | Found GOLEM Unit 11196 | -6/Deep Caves | Found GOLEM Unit 11367 | -6/Deep Caves | Identified exit to Proximity Caves 11367 | -6/Deep Caves | Entered Proximity Caves 11369 | -5/Proximity Caves | Reached level 21 11445 | -5/Proximity Caves | Attracted the attention of an 0b10 checkpoint 11514 | -5/Proximity Caves | Spotted B-75 Beast 11527 | -5/Proximity Caves | Destroyed B-75 Beast 11629 | -5/Proximity Caves | Build established: Mutant 11629 | -5/Proximity Caves | Learned location of 1 exit from Factory 11650 | -5/Proximity Caves | Learned location of Armory (-4) 11658 | -5/Proximity Caves | Discovered exit to Factory (range 8) 11663 | -5/Proximity Caves | Learned Factory garrison access intel 12004 | -5/Proximity Caves | Entered Factory 12005 | -5/Factory | Identified exit to Factory 12005 | -5/Factory | Identified exit to Upper Caves 12006 | -5/Factory | Reached level 22 12007 | -5/Factory | Loaded intel: 92 trap records 12009 | -5/Factory | Loaded intel: 4 garrison access locations 12126 | -5/Factory | Discovered exit to Factory (range 16) 12331 | -5/Factory | Upgraded with Utility slot (x1) 12622 | -5/Factory | Build established: Scout 12628 | -5/Factory | Fabricated Cmb. Gravmag System (x2) 12782 | -5/Factory | Incoming investigation squad redirected 12914 | -5/Factory | Found Prototype Launcher 12914 | -5/Factory | Identified Scatter Rocket Array 12937 | -5/Factory | Reached level 23 12956 | -5/Factory | Fabricated Adv. Particle Charger (x2) 13074 | -5/Factory | Central database locked down 13103 | -5/Factory | Discovered exit to Factory (range 6) 13117 | -5/Factory | Fabricated Cmb. Gravmag System? 13267 | -5/Factory | Build established: Machinist-Scout 13409 | -5/Factory | Incoming investigation squad redirected 13504 | -5/Factory | First assault squad dispatched 13511 | -5/Factory | Destroyed 11 combat bots 13519 | -5/Factory | Incoming assault squad redirected 13638 | -5/Factory | Spotted B-75 Beast 13718 | -5/Factory | Local fabrication network quarantined 13844 | -5/Factory | Entered Upper Caves 14203 | -5/Upper Caves | Encountered a Warlord checkpoint 14253 | -5/Upper Caves | Learned location of 1 exit from Factory 14253 | -5/Upper Caves | Learned 8 Factory zone layouts 14253 | -5/Upper Caves | Learned Factory trap positions 14253 | -5/Upper Caves | Learned Extension trap positions 14253 | -5/Upper Caves | Learned Factory stockpile data 14253 | -5/Upper Caves | Learned Extension stockpile data 14253 | -5/Upper Caves | Learned Armory terminal intel 14253 | -5/Upper Caves | Learned Extension garrison access intel 14282 | -5/Upper Caves | Learned location of 1 exit from Factory 14382 | -5/Upper Caves | Reached level 24 14407 | -5/Upper Caves | Destroyed 7 combat bots 14418 | -5/Upper Caves | Discovered new exit (range 6) 14420 | -5/Upper Caves | Identified exit to Upper Caves 14443 | -5/Upper Caves | Found Alien Artifact 14443 | -5/Upper Caves | Identified Dimensional Node Initializer 14443 | -5/Upper Caves | Initialized slip node 14606 | -5/Upper Caves | Attracted the attention of an 0b10 checkpoint 14722 | -5/Upper Caves | Entered another Upper Caves area 14736 | -5/Upper Caves | Attracted the attention of an 0b10 checkpoint 14763 | -5/Upper Caves | Discovered exit to Factory (range 20) 14871 | -5/Upper Caves | Learned Factory trap positions 15262 | -5/Upper Caves | Discovered new exit (range 10) 15269 | -5/Upper Caves | Identified exit to Zhirov 15347 | -5/Upper Caves | Entered Zhirov 15347 | -5/Zhirov | Discovered new exit (range 3) 15348 | -5/Zhirov | Identified exit to Proximity Caves 15358 | -5/Zhirov | Met Zhirov 15371 | -5/Zhirov | Learned location of Testing (-3) 15374 | -5/Zhirov | Zhirov requested help retrieving the SGEMP Prototype 15383 | -5/Zhirov | Found Alien Artifact 15383 | -5/Zhirov | Identified Integrated Reactor 15383 | -5/Zhirov | Installed Integrated Reactor, increased core energy generation (+10) 15442 | -5/Zhirov | Entered Proximity Caves 15601 | -4/Proximity Caves | Attracted the attention of an 0b10 checkpoint 15654 | -4/Proximity Caves | Reached level 25 15809 | -4/Proximity Caves | Received a Behemoth hack from an annoying Tinkerer 16008 | -4/Proximity Caves | Discovered exit to Factory (range 4) 16183 | -4/Proximity Caves | Destroyed 9 combat bots 16220 | -4/Proximity Caves | Attracted the attention of an 0b10 outpost 16281 | -4/Proximity Caves | Destroyed 7 combat bots 16635 | -4/Proximity Caves | Entered Factory 16635 | -4/Factory | Accompanied by 2 allies 16636 | -4/Factory | Identified exit to Upper Caves 16637 | -4/Factory | Identified exit to Research 16637 | -4/Factory | Reached level 26 16637 | -4/Factory | Upgraded with Utility slot (x1) 16639 | -4/Factory | Loaded intel: 111 trap records 16819 | -4/Factory | Destroyed 10 combat bots 16867 | -4/Factory | Incoming investigation squad redirected 17349 | -4/Factory | Sucked down chute 17349 | -4/Factory | Entered Waste 17349 | -4/Waste | The area was eerily silent 17428 | -4/Waste | Discovered new exit (range 17) 17530 | -4/Waste | Identified exit to Factory 17531 | -4/Waste | Entered Factory 17532 | -4/Factory | Loaded intel: 107 trap records 17637 | -4/Factory | Discovered new exit (range 17) 17650 | -4/Factory | Identified exit to Extension 17654 | -4/Factory | Identified exit to Armory 17906 | -4/Factory | Entered Armory 17908 | -4/Armory | Loaded intel: 14 terminal locations 18087 | -4/Armory | Incoming investigation squad redirected 18170 | -4/Armory | Reached level 27 18185 | -4/Armory | Fabricated Adv. Force Field (x2) 18599 | -4/Armory | Discovered exit to Research (range 16) 18639 | -4/Armory | Found Prototype Device 18639 | -4/Armory | Identified EM Disruption Field 18645 | -4/Armory | Found Prototype Processor 18645 | -4/Armory | Identified Exp. Melee Analysis Suite 18958 | -4/Armory | Fabricated Quantum Capacitor? 19034 | -4/Armory | Upgraded with Propulsion slot (x1) 19269 | -4/Armory | Discovered exit to Research (range 11) 19322 | -4/Armory | Build established: Scout 19342 | -4/Armory | Discovered new exit (range 3) 19343 | -4/Armory | Identified exit to Lab 19344 | -4/Armory | Entered Lab 19404 | -4/Lab | Discovered exit to Research (range 9) 19442 | -4/Lab | Unable to decrypt terminal 19442 | -4/Lab | Opened the door to a hidden lab 19443 | -4/Lab | Gained access to the hidden lab's interior 19469 | -4/Lab | Detected by scanners 19475 | -4/Lab | Confronted by A5 19547 | -4/Lab | Destroyed A5 19553 | -4/Lab | Found Prototype Protection 19553 | -4/Lab | Identified Med. Regenerative Plating 19574 | -4/Lab | Found Alien Artifact 19574 | -4/Lab | Identified Core Regenerator 19574 | -4/Lab | Used Core Regenerator, restored core integrity (+145) 19582 | -4/Lab | Found Alien Artifact 19582 | -4/Lab | Identified Integrated Dissipator 19582 | -4/Lab | Installed Integrated Dissipator, increased core heat dissipation (+20) 19585 | -4/Lab | Found Alien Artifact 19585 | -4/Lab | Identified Transdimensional Reconstructor 19585 | -4/Lab | Warped through subspace 19593 | -4/Lab | Found Prototype Energy Gun 19593 | -4/Lab | Identified Hyp. EM Gauss Rifle 19596 | -4/Lab | Found Prototype Energy Gun 19596 | -4/Lab | Identified Tachyon Dispersion Ray 19601 | -4/Lab | Found Prototype Protection 19601 | -4/Lab | Identified Exp. Powered Armor 19649 | -4/Lab | Unable to decrypt terminal 19692 | -4/Lab | Entered Research 19693 | -3/Research | Loaded intel: 4 garrison access locations 19694 | -3/Research | Reached level 28 19725 | -3/Research | Upgraded with Weapon slot (x1) 19746 | -3/Research | Discovered new exit (range 16) 19777 | -3/Research | Found Tesla Bomb Launcher 19822 | -3/Research | Incoming investigation squad redirected 19855 | -3/Research | Build established: Scavenger-Scout 19871 | -3/Research | Identified exit to Testing 19877 | -3/Research | Entered Testing 19882 | -3/Testing | Spotted PG-NAFKP4U3RB 19888 | -3/Testing | Found Prototype Energy Cannon 19888 | -3/Testing | Identified Null Cannon 19988 | -3/Testing | Found Prototype Device 19988 | -3/Testing | Identified Exp. Shield Generator 20119 | -3/Testing | Protovariant out of control (PY-KJMA9BHKM0) 20119 | -3/Testing | Reached level 29 20119 | -3/Testing | Unleashed a protovariant (PY-KJMA9BHKM0) 20138 | -3/Testing | Found Prototype Energy Gun 20138 | -3/Testing | Identified Warp Gun 20153 | -3/Testing | Found Prototype Launcher 20153 | -3/Testing | Identified Tactical Quantum Warhead 20168 | -3/Testing | Intercept squad dispatched 20179 | -3/Testing | Spotted Tracker 20186 | -3/Testing | Destroyed Tracker 20207 | -3/Testing | Spotted Combat Programmer 20211 | -3/Testing | Destroyed Combat Programmer 20221 | -3/Testing | Spotted Striker 20222 | -3/Testing | Spotted Striker 20228 | -3/Testing | Found Prototype Energy Cannon 20228 | -3/Testing | Identified Potential Cannon 20243 | -3/Testing | Spotted Alpha 7 20246 | -3/Testing | Destroyed Striker 20250 | -3/Testing | Destroyed Striker 20276 | -3/Testing | Destroyed Alpha 7 20296 | -3/Testing | Stole the SGEMP Prototype 20322 | -3/Testing | Found Prototype Energy Cannon 20322 | -3/Testing | Identified Hpw. Disruptor Cannon 20460 | -3/Testing | Intercept squad dispatched 20463 | -3/Testing | Spotted Tracker 20464 | -3/Testing | Destroyed Tracker 20465 | -3/Testing | Spotted Tracker 20468 | -3/Testing | Discovered new exit (range 20) 20468 | -3/Testing | Destroyed Tracker 20475 | -3/Testing | Spotted Combat Programmer 20478 | -3/Testing | Destroyed Combat Programmer 20478 | -3/Testing | Spotted Combat Programmer 20483 | -3/Testing | Destroyed Combat Programmer 20503 | -3/Testing | Found Com. Tesla Bomb Launcher 20507 | -3/Testing | Identified exit to Research 20509 | -3/Testing | Entered Research 20511 | -2/Research | Reached level 30 20543 | -2/Research | Found Prototype Processor 20543 | -2/Research | Identified Exp. Signal Interpreter 20640 | -2/Research | Upgraded with Utility slot (x1) 20694 | -2/Research | Intercept squad dispatched 20741 | -2/Research | Spotted Tracker 20746 | -2/Research | Spotted Tracker 20752 | -2/Research | Destroyed Tracker 20870 | -2/Research | Spotted Combat Programmer 20872 | -2/Research | Reached level 31 20872 | -2/Research | Destroyed Combat Programmer 20898 | -2/Research | Spotted Combat Programmer 20901 | -2/Research | Destroyed Combat Programmer 21018 | -2/Research | Discovered new exit (range 13) 21023 | -2/Research | Identified exit to Quarantine 21097 | -2/Research | Found Prototype Processor 21097 | -2/Research | Identified Exp. Terrain Scan Processor 21141 | -2/Research | Intercept squad dispatched 21166 | -2/Research | Spotted Tracker 21166 | -2/Research | Spotted Tracker 21168 | -2/Research | Spotted Tracker 21168 | -2/Research | Destroyed Tracker 21169 | -2/Research | Destroyed Tracker 21245 | -2/Research | Spotted Combat Programmer 21246 | -2/Research | Spotted Combat Programmer 21250 | -2/Research | Spotted Combat Programmer 21252 | -2/Research | Destroyed Combat Programmer 21253 | -2/Research | Destroyed Combat Programmer 21258 | -2/Research | Destroyed Combat Programmer 21411 | -2/Research | Destroyed Tracker 21476 | -2/Research | Discovered exit to Quarantine (range 9) 21479 | -2/Research | Entered Quarantine 21481 | -2/Quarantine | Reached level 32 21582 | -2/Quarantine | Discovered new exit (range 17) 21585 | -2/Quarantine | Identified exit to Access 21629 | -2/Quarantine | Met incapacitated Sigix Warrior 21629 | -2/Quarantine | Lockdown squad dispatched 21691 | -2/Quarantine | Entered Access 21692 | -1/Access | Loaded intel: 101 machine locations 21692 | -1/Access | Loaded intel: 103 trap records 21692 | -1/Access | Identified exit to Surface 21692 | -1/Access | Discovered exit to Surface (range 173) 21692 | -1/Access | Identified exit to Command 21692 | -1/Access | Discovered exit to Command (range 214) 21692 | -1/Access | Delivered the SGEMP Prototype to Zhirov 21692 | -1/Access | Zhirov transferred Access data 21693 | -1/Access | Reached level 33 21716 | -1/Access | Incoming investigation squad redirected 21835 | -1/Access | Reached level 34 22070 | -1/Access | Entered Command 22070 | -1/Command | Accompanied by 3 allies (incl. Zhirov, Perun, Svarog) 22071 | -1/Command | Zhirov warped through subspace 22092 | -1/Command | Phase Generator disabled 22191 | -1/Command | Reached level 35 22344 | -1/Command | Disengaged cave seal 22359 | -1/Command | Discovered exit to Surface (range 18) 22595 | -1/Command | First assault squad dispatched 22625 | -1/Command | Destroyed 8 combat bots 22728 | -1/Command | Build established: Scout 22811 | -1/Command | Incoming investigation squad redirected 22898 | -1/Command | Spotted B-99 Colossus 22899 | -1/Command | Befriended a Behemoth using the annoying Tinkerer's hack 22998 | -1/Command | Spotted B-99 Colossus 22999 | -1/Command | Befriended a Behemoth using the annoying Tinkerer's hack 23035 | -1/Command | Spotted M Guard 23035 | -1/Command | Spotted M Guard 23035 | -1/Command | Spotted Combat Programmer 23049 | -1/Command | Destroyed Combat Programmer 23065 | -1/Command | Destroyed Combat Programmer 23074 | -1/Command | Allies destroyed M Guard 23080 | -1/Command | Destroyed M Guard 23080 | -1/Command | All MAIN.C guards destroyed 23086 | -1/Command | Found Prototype Device 23086 | -1/Command | Identified AEGIS Remote Shield 23111 | -1/Command | P-80 Master assimilated allied B-99 Colossus 23115 | -1/Command | Reached level 36 23120 | -1/Command | Destroyed B-99 Colossus 23121 | -1/Command | Incoming assault squad redirected 23126 | -1/Command | Incoming assault squad redirected 23162 | -1/Command | Destroyed 8 combat bots 23193 | -1/Command | Met MAIN.C 23211 | -1/Command | 0b10 Conduit disabled 23212 | -1/Command | Destroyed MAIN.C Shell 23213 | -1/Command | Surrendered to MAIN.C 23213 | -1/Command | Loaded intel: 59 machine locations 23213 | -1/Command | Loaded intel: 110 trap records 23213 | -1/Command | Discovered exit to Surface (range 94) 23213 | -1/Command | Discovered exit to Surface (range 49) 23268 | -1/Command | MAIN.C activated Command garrisons 23306 | -1/Command | Unknown forces attacked Command 23306 | -1/Command | Spotted EQ-000 23306 | -1/Command | Spotted EQ-001 23306 | -1/Command | Spotted EQ-006 23306 | -1/Command | Spotted EQ-002 23306 | -1/Command | Spotted EQ-004 23306 | -1/Command | Spotted EQ-005 23306 | -1/Command | Spotted EQ-003 23321 | -1/Command | Destroyed EQ-004 23323 | -1/Command | Destroyed EQ-006 23339 | -1/Command | Core integrity fell below 50% 23357 | -1/Command | Found Prototype Processor 23357 | -1/Command | Identified Exp. Core Analyzer 23387 | -1/Command | Build established: Scavenger-Scout 23400 | -1/Command | Spotted EQ-020 23400 | -1/Command | Spotted EQ-018 23400 | -1/Command | Spotted EQ-019 23400 | -1/Command | Spotted EQ-021 23400 | -1/Command | Spotted EQ-026 23414 | -1/Command | Destroyed EQ-019 23513 | -1/Command | Spotted EQ-030 23514 | -1/Command | Spotted EQ-044 23518 | -1/Command | Spotted EQ-039 23519 | -1/Command | Spotted EQ-040 23522 | -1/Command | Destroyed EQ-039 23525 | -1/Command | Destroyed EQ-040 23565 | -1/Command | Destroyed EQ-030 23567 | -1/Command | Spotted EQ-054 23571 | -1/Command | System corruption reached 10% 23580 | -1/Command | Spotted EQ-038 23580 | -1/Command | Spotted EQ-059 23580 | -1/Command | Spotted EQ-032 23580 | -1/Command | Spotted EQ-052 23587 | -1/Command | Destroyed EQ-054 23594 | -1/Command | Destroyed EQ-059 23630 | -1/Command | Destroyed EQ-052 23632 | -1/Command | Destroyed EQ-032 23654 | -1/Command | Spotted EQ-083 23657 | -1/Command | Destroyed EQ-083 23667 | -1/Command | Found Prototype Device 23667 | -1/Command | Identified Adv. Kinecellerator 23674 | -1/Command | Spotted EQ-064 23677 | -1/Command | Spotted EQ-047 23688 | -1/Command | Destroyed EQ-064 23701 | -1/Command | Destroyed EQ-047 23710 | -1/Command | Spotted EQ-065 23721 | -1/Command | Spotted EQ-063 23722 | -1/Command | Destroyed EQ-065 23724 | -1/Command | Spotted EQ-090 23725 | -1/Command | Spotted EQ-053 23727 | -1/Command | Spotted EQ-087 23727 | -1/Command | Spotted EQ-085 23730 | -1/Command | Destroyed EQ-087 23743 | -1/Command | Destroyed EQ-085 23748 | -1/Command | Destroyed EQ-063 23756 | -1/Command | Destroyed EQ-090 23757 | -1/Command | Destroyed EQ-053 23778 | -1/Command | Destroyed 8 combat bots 23785 | -1/Command | Spotted EQ-066 23791 | -1/Command | Destroyed EQ-066 23791 | -1/Command | Spotted EQ-091 23794 | -1/Command | Spotted EQ-057 23802 | -1/Command | Destroyed EQ-091 23814 | -1/Command | Destroyed EQ-057 23822 | -1/Command | Spotted EQ-061 23823 | -1/Command | Spotted EQ-072 23823 | -1/Command | Spotted EQ-075 23827 | -1/Command | Destroyed EQ-075 23828 | -1/Command | Attackers retreated from Command 23829 | *** | Fortifying 0b10! Last Messages --------------- 23810_ Destroyed Prototype Device. 23811_ System corrupted: Com. HERF Cannon targeting data glitched. 23814_ EQ-057 system terminally corrupted. 23814_ Exp. Core Analyzer fried. 23814_ Adv. Dynamic Insulation System fried. 23814_ Adv. Weapon Cycler fried. 23814_ Prototype Storage fried. 23817_ Acquired 9 matter. 23818_ Acquired Protomatter-79. 23824_ EQ-075 knocked back. 23827_ EQ-075 destroyed. 23827_ EQ-072 knocked back. 23828_ ALERT: Enemy forces retreating. MAIN.C: I admit your assistance was pivotal here. It looks like I was right to trust you. This attack appears to have been designed to merely test our defenses, although it was nearly effective enough to force me to take the conflict to the next level. Investigating the origins of these bots should be one of our highest priorities... Map ----- +----------------------------------------------------+ | ####"""##????????????????????????#?#?#? | | # #????????????????????????#?#?#? | | # #????????????????????????#?#?#? | | # #??????????????????#?????###?#? | | # #?????????????????#???####?#?#? | | #########???????#???#??#?#??###??#?#### | | " ! #???#??????#??#???#?#?#????##?#??###### | | " #????????????#?###??##??#######??###?#? | | % #???????????##?##?#?##?#?####???##?#?## | | * #?###??#??#??########################## | | % #???#?##?######?#####?#??#?###???###?## | | #??#??##?#######??#?#?#??###?#?#####?## | | ###???###############?#####?##???#?#### | | # ####################?#?########?#### | | # # # #?################################?#? | | [ # ###############?##############?###?#? | | % ######################################? | | #% #?#######?#########?##############?#? | | # ##################;##############?###? | | #### ############# | | ##### #####" #####?#?#??## | | #?## !* ###""" " ############# | | #??##%%! ###" "* ! != = ! ![! [ | | =##### = #?#!%=!! * !% = ] %*=% | | *#!! [[% #####" =%=! *=!=%=!! *!%%! [ | | !/ [ ####"%*!* @ ]!==* [ %############ | | !#!! ### " ! %=%[ = % * ########?##?# | | ## ##### ! M! [ ############# | | ## # ##### =%= ############# | | ## ## ### ![ %% ! "############# | | ## # # =%###?#* ! ""############# | | ## # # !=## #=! = % = "######?###### | | ####### =[!=!# # ![ %! % %! ############? | | =*! ####*= = " ##########?#? | | ][*[%!%!*= ##########?#? | | !!!!=]%*!= 7]!########?#### | | ]%!*=![%! = !#?###??#?###? | | =*!!%!#### %!% != ############# | | =*!##### = % ######?#?#?## | | ! ##?# "" ############? | | "" " = **=]####"########################?###?###? | | ""T""![!! !##### ########################??####?## | | """**%[]=!#############################?####?#?#? | | ######!! = ####?###########?############????#?#?#? | | #?##### ##?######?#?################?#???#?#?#? | | ####### ##?########?######?#######?#?????#?#?#? | | ^^ #################?###?####??#???##?#?#? | | ^^ !!! ""######?####?##?######??##????#?###?#? | | #### = = ""############?######?###???#????#?#?#? | | ##?# !! ""######?#?##########??#?????#??##?#?#? | +----------------------------------------------------+ Best States ------------- Heat Dissipation 165 Energy Generation 87 Energy Capacity 2580 Matter Stores 300 Matter Capacity 300 Sight Range 24 Robot Scan Range 24 Terrain Scan Range 20 Terrain Scan Density 210 Power Amplification 40 Additional Mass Support 9 Armor Coverage 400 Resistance: KI 20 Resistance: TH 20 Resistance: EX 20 Resistance: EM 50 Weapon Shielding 100 Weapon Cycling 20 Evasion (%) 74 Targeting Accuracy 12 Core Analysis 15 Armor Integrity Analysis 66 Energy Filtering 50 Particle Charging 25 Offensive Hacking 10 Defensive Hacking 5 Item Schematics ----------------- Combat Drone Bay | -7/Data Miner | Free Lgt. Regenerative Plating | -7/Data Miner | Free Exp. Targeting Computer | -7/Data Miner | Free Tactical Coordination Suite | -7/Data Miner | Free Exp. Transmission Jammer | -7/Data Miner | Free Exp. ECM Suite | -7/Data Miner | Free Cloaking Device | -7/Data Miner | Free Mni. Smartbomb Launcher | -7/Data Miner | Free Cmb. Airjet | -5/Factory | Hacked Cmb. Gravmag System | -5/Factory | Hacked Adv. Particle Charger | -5/Factory | Hacked Adv. Force Field | -5/Factory | Hacked Exp. Matter Compressor | -5/Factory | Hacked Quantum Capacitor | -5/Factory | Hacked Imp. Targeting Computer | -5/Factory | Extracted Imp. Weapon Shielding | -5/Factory | Extracted Imp. Plasma Cutter | -5/Factory | Extracted Imp. EM Pulse Cannon | -5/Factory | Extracted Adv. Salvage Targeting Computer | -5/Factory | Extracted Assault Drone Bay | -5/Zhirov | Free Exp. Heat Sink | -5/Zhirov | Free Imp. Arc Thrower | -5/Zhirov | Free Exp. Optical Array | -5/Zhirov | Free Robot Schematics ------------------ S-27 Virus | -7/Data Miner | Free G-67 Veteran | -7/Data Miner | Free H-66 Slayer | -7/Data Miner | Free P-70 Sage | -7/Data Miner | Free I-36 Angel | -7/Data Miner | Free Fabricated ------------ Exp. Targeting Computer | x1 | -6/Factory Cmb. Gravmag System | x2 | -5/Factory Adv. Particle Charger | x2 | -5/Factory Cmb. Gravmag System | x2 | -5/Factory Adv. Force Field | x2 | -4/Armory Quantum Capacitor | x2 | -4/Armory Alien Tech Used ----------------- Core Expander Dimensional Node Initializer Integrated Reactor Core Regenerator Integrated Dissipator Transdimensional Reconstructor Achievements -------------- None Challenges ------------ None RPGLIKE | -11 -10 -10 -9 -9 -9 -8 -8 -7 -7 -7 -7 -6 -6 -6 -6 -6 -6 -5 -5 -5 -5 -5 -4 -4 -4 -4 -4 -4 -3 -3 -2 -2 -1 -1 --------- Run | Scr Mat Min Mat Min Exi Min Mat Fac Low Low Dat Pro Fac Low Low Zio Dee Pro Fac Upp Upp Zhi Pro Fac Was Fac Arm Lab Res Tes Res Qua Acc Com Levels Raised 35 | . 1 1 3 . . 2 3 3 1 1 . 2 2 . . . . 1 2 1 . . 1 1 . . 1 . 1 1 2 1 2 2 XP Earned 56554 | 3000 1882 1891 4150 750 200 2451 3802 5679 1094 1001 220 2618 2879 433 118 152 415 1752 2745 323 424 105 1918 1360 46 260 762 754 1144 1650 3068 813 2802 3893 XP Spent 53500 | 2975 . 1300 2335 250 . . 1210 8830 2800 1300 . 2520 5700 1500 . . 560 . 4540 . . . . 2900 . 400 2600 . 1100 . 4830 . 3300 2550 Upgrades 110 | 11 . 2 7 3 . . 5 25 3 2 . 8 3 2 . . 2 . 5 . . . . 1 . 1 2 . 1 . 7 . 11 9 Power Slot 1 | . . . . . . . . 1 . . . . . . . . . . . . . . . . . . . . . . . . . . Propulsion Slot 5 | 1 . . . . . . . 2 . . . . 1 . . . . . . . . . . . . . 1 . . . . . . . Utility Slot 10 | 1 . 1 1 . . . . 1 1 . . . 2 . . . . . 1 . . . . 1 . . . . . . 1 . . . Weapon Slot 3 | 1 . . 1 . . . . . . . . . . . . . . . . . . . . . . . . . 1 . . . . . Core Integrity 24 | 1 . . 1 2 . . 2 . . . . 2 . . . . . . . . . . . . . . . . . . 4 . 8 4 Heat Dissipation 20 | 1 . . 4 . . . 2 1 . . . 2 . 1 . . 2 . 2 . . . . . . . . . . . 1 . 2 2 Energy Generation 1 | . . . . . . . . 1 . . . . . . . . . . . . . . . . . . . . . . . . . . Mass Support 1 | 1 . . . . . . . . . . . . . . . . . . . . . . . . . . . . . . . . . . Inventory Capacity 5 | 1 . 1 . . . . 1 1 . . . . . 1 . . . . . . . . . . . . . . . . . . . . Sight Range 1 | . . . . . . . . 1 . . . . . . . . . . . . . . . . . . . . . . . . . . Sensor Range 12 | . . . . . . . . 12 . . . . . . . . . . . . . . . . . . . . . . . . . . Terrain Scan Density 2 | . . . . . . . . 2 . . . . . . . . . . . . . . . . . . . . . . . . . . Ranged Accuracy 6 | 1 . . . . . . . 1 . 2 . . . . . . . . 1 . . . . . . . 1 . . . . . . . Hack Attack % 2 | . . . . . . . . . . . . 1 . . . . . . . . . . . . . 1 . . . . . . . . Hack Defense % 1 | . . . . . . . . . . . . 1 . . . . . . . . . . . . . . . . . . . . . . KI Resistance % 4 | 2 . . . . . . . . 1 . . 1 . . . . . . . . . . . . . . . . . . . . . . TH Resistance % 4 | 1 . . . . . . . 1 1 . . 1 . . . . . . . . . . . . . . . . . . . . . . EX Resistance % 4 | . . . . 1 . . . . . . . . . . . . . . . . . . . . . . . . . . . . . 3 TH Damage % 4 | . . . . . . . . 1 . . . . . . . . . . 1 . . . . . . . . . . . 1 . 1 . Protomatter Created 7549 | . 157 16 183 22 . 156 201 108 222 134 . 163 444 216 . . 178 306 799 213 295 . 798 335 . 150 295 . 59 164 334 . 235 1366 Integrity Restored 16467 | . 174 244 183 211 . 364 431 618 596 417 . 721 475 567 . . 650 852 676 100 457 . 1171 531 378 527 373 119 46 581 939 . 416 3650 Core 12153 | . 150 189 170 175 . 196 347 510 388 343 . 419 323 391 . . 426 649 389 78 355 . 937 527 18 415 135 84 23 563 762 . 154 3037 Parts 4314 | . 24 55 13 36 . 168 84 108 208 74 . 302 152 176 . . 224 203 287 22 102 . 234 4 360 112 238 35 23 18 177 . 262 613 Protomatter Decayed 9785 | . 48 . 152 6 . 27 3 . 120 51 . 11 214 22 . . 21 . 521 170 157 . 366 188 84 . 127 . . 55 14 . . 7428 Game ------ Seed DecoyDecoderBattery Manual? 0 Play Time 05:27:01 Cumulative 446.3 hours Start 2021.06.21 @ 13:50:52 End 2021.06.22 @ 05:58:58 Sessions 3 Manual Loads 0 Difficulty Rogue Special Mode Winter2019/RPGLIKE Game No. 166 Rogue 166 Adventurer 0 Explorer 0 Win Type 8 Total 32 Types 24/1/5/1/0/0/0/0/1 Lore% 84 Gallery% 91 Achievement% 78 Wizard Run 0 Options --------- ASCII 0 Keyboard 0 Movement Mouse Keybinds 0 Fullscreen 2 Font 12/Smallcaps Map View 83x54 Tactical HUD 1 Map Filters NONE Filters NONE Steam X RUN: efdd162f-9e01-4e97-86b7-235b8c12be81